Workbook

Sheet INIZIO
A6: SOFTWARE DI CALCOLO PER VITI CONSTRUCT TC - TS
B9: 1) Rinforzo di trave con intaglio | G9: 2) Rinforzo di trave a compressione
B21: 3) Verifiche su connessioni inclinate | G21: 4) Verifiche su connessioni piane
A30: Il presente foglio di calcolo non può essere distribuito e/o modificato senza il consenso scritto di RoofRox Srl.
A31: Software Viti CONSTRUCT - RoofRox v1

Sheet INTAGLIO
A5: RINFORZO DI TRAVE CON INTAGLIO
A7: DATI DI PROGETTO
A8: B = | B8: 160 | C8: mm
A9: H = | B9: 360 | C9: mm
A10: Hef = | B10: 180 | C10: mm
A11: H-Hef = | B11: =B9-B10 -> 180 | C11: mm
A12: Lappoggio = | B12: 200 | C12: mm
A13: Lintaglio = | B13: 0 | C13: mm
A14: FV,Ed = | B14: 19 | C14: kN
A15: Legno =
A17: VERIFICA DELLA TENSIONE A TAGLIO - TRAVE NON RINFORZATA / SEZIONE RIDOTTA
A18: tc,90,d = | B18: =1.5*B14/(B10*(0.67*B8))*10^3 -> 1.47699005 | C18: MPa
A19: c = | B19: 80 | C19: mm
A20: αh= | B20: =B10/B9 -> 0.5 | C20: -
A21: i = | B21: =B13/B11 -> 0 | C21: -
A22: kn = | B22: =VLOOKUP(Prescrizioni!$D$197,Prescrizioni!$D$194:$E$196,2) -> 6.5 | C22: -
A23: kv = | B23: =MIN(1,(B22*(1+(1.1*B21^1.5)/B9^0.5))/(B9^0.5*((B20*(1-B20))^0.5+0.8*B19/B9*(1/B20-B20^2)^0.5))) -> 0.4659825635 | C23: -
A24: fv,k = | B24: =VLOOKUP(Materiali!$B$33,Materiali!$B$5:$O$32,8) -> 3.5 | C24: MPa
A26: EN 1995:2014 | G26: NTC '18
A27: kmod = | B27: 0.9 | C27: - | G27: kmod = | H27: =B27 -> 0.9 | I27: -
A28: gL = | B28: =IF(Prescrizioni!$D$197=2,Prescrizioni!$D$4,Prescrizioni!$E$4) -> 1.25 | C28: - | G28: gL = | H28: =IF(Prescrizioni!$D$197=2,Prescrizioni!$D$3,Prescrizioni!$E$3) -> 1.45 | I28: -
A29: fv,d = | B29: =B27/B28*B24 -> 2.52 | C29: MPa | G29: fv,d = | H29: =H27/H28*B24 -> 2.172413793 | I29: MPa
A30: kv*fv,d = | B30: =B23*B29 -> 1.17427606 | C30: MPa | G30: kv*fv,d = | H30: =B23*H29 -> 1.012306948 | I30: MPa
A31: =IF(B18>B30,"VERIFICA NON SODDISFATTA","VERIFICA SODDISFATTA") -> VERIFICA NON SODDISFATTA | G31: =IF(B18>H30,"VERIFICA NON SODDISFATTA","VERIFICA SODDISFATTA") -> VERIFICA NON SODDISFATTA
A32: =CONCATENATE(TRUNC(B30,2)," ",C30) -> 1.17 MPa | B32: =IF(B30>B18,">","<") -> < | C32: =CONCATENATE(ROUNDUP(B18,2)," ",C18) -> 1.48 MPa | G32: =CONCATENATE(TRUNC(H30,2)," ",I30) -> 1.01 MPa | H32: =IF(H30>B18,">","<") -> < | I32: =CONCATENATE(ROUNDUP(B18,2)," ",C18) -> 1.48 MPa
A34: VERIFICA DELLA TENSIONE A TAGLIO - TRAVE NON RINFORZATA / SEZIONE PIENA
A35: tc,90,d = | B35: =1.5*B14/(B9*B8)*10^3 -> 0.4947916667 | C35: MPa
A37: EN 1995:2008 | G37: NTC '18
A38: fv,d = | B38: =B29 -> 2.52 | C38: MPa | G38: fv,d = | H38: =H29 -> 2.172413793 | I38: MPa
A39: =CONCATENATE(ROUNDUP(B38,2)," ",C38) -> 2.52 MPa | B39: =IF(B38>B35,">","<") -> > | C39: =CONCATENATE(ROUNDUP(B35,2)," ",C35) -> 0.5 MPa | G39: =CONCATENATE(ROUNDUP(H38,2)," ",I38) -> 2.18 MPa | H39: =IF(H38>B35,">","<") -> > | I39: =CONCATENATE(ROUNDUP(B35,2)," ",C35) -> 0.5 MPa
A40: =IF(B35>B38,"VERIFICA NON SODDISFATTA","VERIFICA SODDISFATTA") -> VERIFICA SODDISFATTA | G40: =IF(B35>H38,"VERIFICA NON SODDISFATTA","VERIFICA SODDISFATTA") -> VERIFICA SODDISFATTA
A41: RINFORZO SEZIONE 1 - CALCOLO TRAZIONE ORTOGONALE ALLE FIBRE - DIN 1052:2008
F42: Fax,Rd= Ft,90,d = | H42: =1.3*(3*(1-B20)^2-2*(1-B20)^3)*B14 -> 12.35 | I42: kN
A49: RESISTENZA A TRAZIONE DEL CONNETTORE
A50: Scelta connettore: | H50: Ftens,k = | I50: =IF(Viti!$S$4=1,VLOOKUP(Viti!$T$4,Viti!$B$5:$P$24,14),VLOOKUP(Viti!$T$4,Viti!$B$25:$P$45,14)) -> 24.1 | J50: kN
A54: Angolo inserimento connettore: a [°] = | E54: 90 | L54: alfa rad | M54: =RADIANS(E54) -> 1.570796327 | N54: rad
A55: fax,k,90° = | B55: =IF(Viti3!$S$4=1,VLOOKUP(Viti3!$T$4,Viti3!$B$5:$P$24,15),VLOOKUP(Viti3!$T$4,Viti3!$B$25:$P$45,15)) -> 13.1 | C55: MPa
A56: d = | B56: =IF(Viti3!$S$4=1,VLOOKUP(Viti3!$T$4,Viti3!$B$5:$P$24,8),VLOOKUP(Viti3!$T$4,Viti3!$B$25:$P$45,8)) -> 8 | C56: mm
A57: LVite = | B57: =IF(Viti3!$S$4=1,VLOOKUP(Viti3!$T$4,Viti3!$B$5:$P$24,10),VLOOKUP(Viti3!$T$4,Viti3!$B$25:$P$45,10)) -> 280 | C57: mm
A58: Rax,Rd = min [Fax,a,Rk*kmod/gconn; Ftens,k/gm2]
A60: EN 1995:2014 | G60: NTC '18
A61: kmod = | B61: =B27 -> 0.9 | C61: - | G61: kmod = | H61: =H27 -> 0.9 | I61: -
A62: gconn = | B62: =Prescrizioni!$F$4 -> 1.3 | C62: - | G62: gconn = | H62: =Prescrizioni!$F$3 -> 1.5 | I62: -
A63: gm2 = | B63: 1.25 | C63: - | G63: gm2 = | H63: 1.25 | I63: -
A64: Fax,90°,Rd = | B64: =($B$55*(B$57-B$11)*$B$56/(1.2*(COS($M$54))^2+(SIN($M$54))^2)/10^3)*((VLOOKUP(Materiali!$B$33,Materiali!$B$5:$O$32,13))/350)^0.8*B61/B62 -> 7.830231244 | C64: kN | G64: Fax,90°,Rd = | H64: =($B$55*($B$57-$B$11)*$B$56/(1.2*(COS($M$54))^2+(SIN($M$54))^2)/10^3)*((VLOOKUP(Materiali!$B$33,Materiali!$B$5:$O$32,13))/350)^0.8*H61/H62 -> 6.786200411 | I64: kN
A65: Ftens,d = | B65: =$I$50/B63 -> 19.28 | C65: kN | G65: Ftens,d = | H65: =$I$50/H63 -> 19.28 | I65: kN
A66: Fax,Rd = | B66: =MIN(B64,B65) -> 7.830231244 | C66: kN | G66: Fax,Rd = | H66: =MIN(H64,H65) -> 6.786200411 | I66: kN
A68: NUMERO MINIMO CONNETTORI
A69: EN 1995:2014 | G69: NTC '18
A70: nconn,min = | B70: =$H$42/B66 -> 1.577220342 | C70: - | G70: nconn,min = | H70: =$H$42/H66 -> 1.819869625 | I70: -
A72: Connettori impiegati: → | G72: n0 = | H72: 2 | I72: n90 = | J72: 1
G73: nconn,eff = | H73: =(H72*J72)^0.9 -> 1.866065983 | I73: -
A75: EN 1995:2008 | G75: NTC '18
A76: Fax,Rd,tot [kN]= | B76: =$H$73*B66 -> 14.61172816 | C76: =IF(B76>D76,">",IF(B76=D76,"=","<")) -> > | D76: =$H$42 -> 12.35 | G76: Fax,Rd,tot [kN]= | H76: =$H$73*H66 -> 12.66349774 | I76: =IF(H76>J76,">",IF(H76=J76,"=","<")) -> > | J76: =$H$42 -> 12.35
A77: =IF(B76>D76,"VERIFICA SODDISFATTA","VERIFICA NON SODDISFATTA") -> VERIFICA SODDISFATTA | G77: =IF(H76>J76,"VERIFICA SODDISFATTA","VERIFICA NON SODDISFATTA") -> VERIFICA SODDISFATTA
A82: NOTE PER L'UTILIZZO DEL FOGLIO
A84: 1) La presente relazione di calcolo è stata redatta in conformità alle normative vigenti alla data della stessa.
A85: 2) I parametri caratteristici delle viti sono in accordo a ETA 12/0373.
A86: 3) Il dimensionamento e la verifica degli elementi lignei devono svolgersi separatamente.
A87: 4) La presente relazione di calcolo non costituisce documento esecutivo e dovrà essere sempre conformata dal Vs. tecnico responsabile delle strutture o da tecnico abilitato.
A89: 5) I calcoli qui riportati dovranno essere IN OGNI CASO controllati e approvati dal Vostro tecnico responsabile delle strutture.
A91: 6) La società Roofrox Srl declina ogni responsabilità per utilizzi impropri del presente software di calcolo.
A92: 7) Il presente foglio non può essere modificato e/o distributo in alcun modo senza il consenso scritto di RoofRox Srl.

Sheet RINFORZO A COMPRESSIONE
A5: RINFORZO DI TRAVE A COMPRESSIONE
P6: 1
A7: DATI DI PROGETTO
A8: B = | B8: 200 | C8: mm
A9: H = | B9: 520 | C9: mm
A10: tpiastra = | B10: 20 | C10: mm
A11: bapp = | B11: 200 | C11: mm
A12: Fc,90,d = | B12: 120 | C12: kN
A15: Legno =
A17: VERIFICA DELLA TENSIONE A SCHIACCIAMENTO - TRAVE NON RINFORZATA
A18: sc,90,d = | B18: =B12*10^3/(B8*B20) -> 2.307692308 | C18: MPa
A19: kc,90 = | B19: 1 | C19: -
A20: lef,1= | B20: =MIN(B11+2*30,B11+B11) -> 260 | C20: mm | D20: (secondo EC5 - 6.1.5)
A22: EN 1995:2008 | G22: NTC '18
A23: kmod = | B23: 0.9 | C23: - | G23: kmod = | H23: =B23 -> 0.9 | I23: -
A24: gL = | B24: =IF(Prescrizioni!$D$197=2,Prescrizioni!$D$4,Prescrizioni!$E$4) -> 1.25 | C24: - | G24: gL = | H24: =IF(Prescrizioni!$D$197=2,Prescrizioni!$D$3,Prescrizioni!$E$3) -> 1.45 | I24: -
A25: fc,90,d = | B25: =B23/B24*VLOOKUP(Materiali!$B$33,Materiali!$B$5:$O$32,7) -> 1.8 | C25: MPa | G25: fc,90,d = | H25: =H23/H24*VLOOKUP(Materiali!$B$33,Materiali!$B$5:$O$32,7) -> 1.551724138 | I25: MPa
A26: kC,90*fc,90,d = | B26: =B19*B25 -> 1.8 | C26: MPa | G26: kC,90*fc,90,d = | H26: =B19*H25 -> 1.551724138 | I26: MPa
A27: =IF(B18>B26,"VERIFICA NON SODDISFATTA","VERIFICA SODDISFATTA") -> VERIFICA NON SODDISFATTA | G27: =IF(B18>H26,"VERIFICA NON SODDISFATTA","VERIFICA SODDISFATTA") -> VERIFICA NON SODDISFATTA
A28: =CONCATENATE(TRUNC(B26,2)," ",C26) -> 1.8 MPa | B28: =IF(B26>B18,">","<") -> < | C28: =CONCATENATE(ROUNDUP(B18,2)," ",C18) -> 2.31 MPa | G28: =CONCATENATE(TRUNC(H26,2)," ",I26) -> 1.55 MPa | H28: =IF(H26>B18,">","<") -> < | I28: =CONCATENATE(ROUNDUP(B18,2)," ",C18) -> 2.31 MPa
A30: VERIFICA DELLA TENSIONE A SCHIACCIAMENTO - TRAVE RINFORZATA
A31: Scelta connettore:
A35: Angolo inserimento connettore: a [°] = | E35: 90 | N35: alfa rad | O35: =RADIANS(E35) -> 1.570796327 | P35: rad
A36: fax,k,90° = | B36: =IF(Viti4!$S$4=1,VLOOKUP(Viti4!$T$4,Viti4!$B$5:$P$24,15),VLOOKUP(Viti4!$T$4,Viti4!$B$25:$P$45,15)) -> 13.1 | C36: MPa
A37: fy,k = | B37: 950 | C37: MPa | F37: - Per appoggi intermedi (vedere ETA 12/0373):
A38: d = | B38: =IF(Viti4!$S$4=1,VLOOKUP(Viti4!$T$4,Viti4!$B$5:$P$24,8),VLOOKUP(Viti4!$T$4,Viti4!$B$25:$P$45,8)) -> 8 | C38: mm
A39: d1 = | B39: =IF(Viti4!$S$4=1,VLOOKUP(Viti4!$T$4,Viti4!$B$5:$P$24,7),VLOOKUP(Viti4!$T$4,Viti4!$B$25:$P$45,7)) -> 5.2 | C39: mm
A40: LVite = | B40: =IF(Viti4!$S$4=1,VLOOKUP(Viti4!$T$4,Viti4!$B$5:$P$24,10),VLOOKUP(Viti4!$T$4,Viti4!$B$25:$P$45,10)) -> 200 | C40: mm
A42: Connettori impiegati: → | G42: n0 = | H42: 2 | I42: n90 = | J42: 2
G43: neff,ax = | H43: =(H42*J42) -> 4 | I43: -
A45: lef,2= | B45: =IF(P6=1,2*B40+(H42-1)*H46,$B$40+($H$43-1)*$H$46+MIN($B$40,$H$47)) -> 460 | C45: mm
A46: a1,min= | B46: =IF(B38=8,40,IF(B38=10,50,60)) -> 40 | C46: mm | D46: → | G46: a1,min= | H46: 60 | I46: mm
A47: a1,CG,min= | B47: =B46 -> 40 | C47: mm | G47: a1,CG,min= | H47: 60 | I47: mm
J49: segue
A56: EN 1995:2008 | G56: NTC '18 | N56: INSTABILITA'
A61: kmod = | B61: =B23 -> 0.9 | C61: - | G61: kmod = | H61: =H23 -> 0.9 | I61: - | N61: ch = | O61: =(0.19+0.012*$B$38)*((VLOOKUP(Materiali!$B$33,Materiali!$B$5:$O$32,13)))*((90+$E$35)/180) -> 110.11 | P61: MPa
A62: gconn = | B62: =Prescrizioni!$F$4 -> 1.3 | C62: - | G62: gconn = | H62: =Prescrizioni!$F$3 -> 1.5 | I62: - | N62: Nk,i = | O62: =($O$61*210000*PI()*$B$39^4/64)^0.5/10^3 -> 28.80810328 | P62: kN
A63: gm2 = | B63: 1.25 | C63: - | G63: gm2 = | H63: 1.25 | I63: - | N63: Npl,k = | O63: =PI()/4*$B$39^2*$B$37/10^3 -> 20.17530802 | P63: kN
A64: gm1 = | B64: 1.1 | C64: - | G64: gm1 = | H64: 1.1 | I64: - | N64: lk = | O64: =(O63/O62)^0.5 -> 0.8368598926 | P64: -
A65: Rax,90°,Rd = | B65: =($B$36*(B$38)*$B$40/(1.2*(COS($O$35))^2+(SIN($O$35))^2)/10^3)*((VLOOKUP(Materiali!$B$33,Materiali!$B$5:$O$32,13))/350)^0.8*B61/B62 -> 15.66046249 | C65: kN | G65: Rax,90°,Rd = | H65: =($B$36*(B$38)*$B$40/(1.2*(COS($O$35))^2+(SIN($O$35))^2)/10^3)*((VLOOKUP(Materiali!$B$33,Materiali!$B$5:$O$32,13))/350)^0.8*H61/H62 -> 13.57240082 | I65: kN | N65: kc = | O65: =IF(O64^2<=0.2,1,1/(O66+(O66^2-O64^2)^0.5)) -> 0.6390361049 | P65: -
A66: Npl,d = | B66: =PI()/4*$B$39^2*$B$37/10^3*1/B64 -> 18.34118911 | C66: kN | G66: Npl,d = | H66: =PI()/4*$B$39^2*$B$37/10^3*1/B64 -> 18.34118911 | I66: kN | N66: k = | O66: =0.5*(1+0.49*(O64-0.2)+O64^2) -> 1.006197914
A67: kc = | B67: =O65 -> 0.6390361049 | C67: - | G67: kc = | H67: =O65 -> 0.6390361049 | I67: -
A68: Rax,Rd = | B68: =MIN(B65,B66*B67) -> 11.72068205 | C68: kN | G68: Rax,Rd = | H68: =MIN(H65,H66*H67) -> 11.72068205 | I68: kN
A70: Rc,90,A = | B70: =$B$19*$B$8*$B$20*B25/10^3+$H$43*B68 -> 140.4827282 | C70: kN | G70: Rc,90,A = | H70: =$B$19*$B$8*$B$20*H25/10^3+$H$43*H68 -> 127.5723834 | I70: kN
A71: Rc,90,B = | B71: =$B$8*$B$45*B25/10^3 -> 165.6 | C71: kN | G71: Rc,90,B = | H71: =$B$8*$B$45*H25/10^3 -> 142.7586207 | I71: kN
A73: Rc,90,d = | B73: =MIN(B70:B71) -> 140.4827282 | C73: kN | G73: Rc,90,d = | H73: =MIN(H70:H71) -> 127.5723834 | I73: kN
A74: =IF(B73>$B$12,"VERIFICA SODDISFATTA","VERIFICA NON SODDISFATTA") -> VERIFICA SODDISFATTA | G74: =IF(H73>$B$12,"VERIFICA SODDISFATTA","VERIFICA NON SODDISFATTA") -> VERIFICA SODDISFATTA
A78: NOTE PER L'UTILIZZO DEL FOGLIO
A80: 1) La presente relazione di calcolo è stata redatta in conformità alle normative vigenti alla data della stessa.
A81: 2) I parametri caratteristici delle viti sono in accordo a ETA 12/0373.
A82: 3) Il dimensionamento e la verifica degli elementi lignei devono svolgersi separatamente.
A83: 4) La presente relazione di calcolo non costituisce documento esecutivo e dovrà essere sempre conformata dal Vs. tecnico responsabile delle strutture o da tecnico abilitato.
A85: 5) I calcoli qui riportati dovranno essere IN OGNI CASO controllati e approvati dal Vostro tecnico responsabile delle strutture.
A87: 6) La società Roofrox Srl declina ogni responsabilità per utilizzi impropri del presente software di calcolo.
A88: 7) Il presente foglio non può essere modificato e/o distributo in alcun modo senza il consenso scritto di RoofRox Srl.

Sheet CONNESSIONI INCLINATE
A5: VERIFICHE SULLE CONNESSIONI
A7: DATI DI PROGETTO
A8: B = | B8: 160 | C8: mm
A9: H = | B9: 360 | C9: mm
A10: b = | B10: 120 | C10: mm
A11: h = | B11: 200 | C11: mm
A12: p = | B12: 30 | C12: %
A13: b = | B13: =DEGREES(ATAN(B12/100)) -> 16.69924423 | C13: [°] | N13: alfa rad | O13: =ATAN(B12/100) -> 0.2914567945 | P13: rad
A14: Fc,90,d = | B14: 6 | C14: kN | Q14: Tipologia inserimento viti
A15: Legno = | Q15: 1
Q17: Lunghezze efficaci filetti
Q18: a | R18: =E28 -> 45 | S18: alfa
A19: =IF(Q15=2,"VERIFICA A TAGLIO A LATO DELLA TRAVE DI COLMO (viti posizionate a filo bordo superiore)","VERIFICA A TAGLIO A LATO DELLA TRAVE DI COLMO (viti posizionate nel centro del piano di taglio)") -> VERIFICA A TAGLIO A LATO DELLA TRAVE DI COLMO (viti posizionate nel centro del piano di taglio) | Q19: b | R19: =B13 -> 16.69924423 | S19: beta
A21: EN 1995:2014 | G21: NTC '18 | Q21: h | R21: =B11 -> 200
A22: kmod = | B22: 0.9 | C22: - | G22: kmod = | H22: =B22 -> 0.9 | I22: - | Q22: Ltot | R22: =B34 -> 200
Q23: L1 | R23: =(R21/2)/(SIN(RADIANS(R18+R19))) -> 113.575562 | U23: L2 | V23: =(R21/2)*(1/TAN(RADIANS(R18+R19)))/(COS(RADIANS(R18-R19))) -> 61.15607185
A24: Scelta connettore: | Q24: L3 | R24: =R22-R23 -> 86.424438 | U24: L4 | V24: =R22-V23 -> 138.8439282
A28: Angolo inserimento connettore: a [°] = | E28: 45 | N28: alfa rad | O28: =RADIANS(E28) -> 0.7853981634 | P28: rad
A30: fax,k,90° = | B30: =IF(Viti!$S$4=1,VLOOKUP(Viti!$T$4,Viti!$B$5:$P$24,15),VLOOKUP(Viti!$T$4,Viti!$B$25:$P$45,15)) -> 13.1 | C30: MPa | D30: =IF($Q$16=1,IF(B34/2*COS(O13)<=B11/2,"","- altezza travetto non adatta alla vite: L vite <="),IF(R24*2^0.5/2<=B8,"","- larghezza trave principale non adatta alla vite: L vite <=")) ->  | J30: =IF($Q$16=1,IF(B34/2*COS(O13)<=B11/2,"",CONCATENATE(ROUND(B11/COS(O13),0)," mm")),IF(R24*2^0.5/2<=B8,"",CONCATENATE(ROUND(R24+R23,0)," mm"))) -> 
A31: fy,k = | B31: 950 | C31: MPa | D31: =IF($Q$15=1,IF(B34/2*SIN(RADIANS(45)-O13)<=B11/2,"","- altezza travetto non adatta alla vite: L vite <="),IF((R24+V24)*2^0.5/2<=B9,"","- altezza trave principale non adatta alla vite: L vite <=")) ->  | J31: =IF(Q15=1,IF(B34/2*SIN(RADIANS(45)-O13)<=B11/2,"",CONCATENATE(ROUND(B11/SIN(RADIANS(45)-O13),0)," mm")),IF((R24+V24)*2^0.5/2<=B9,"",CONCATENATE(ROUND(R23+R24,0)," mm"))) -> 
A32: d = | B32: =IF(Viti!$S$4=1,VLOOKUP(Viti!$T$4,Viti!$B$5:$P$24,8),VLOOKUP(Viti!$T$4,Viti!$B$25:$P$45,8)) -> 8 | C32: mm | D32: =IF($Q$15=1,IF(B34/2*(2^0.5)/2<=B8,"","- base trave non adatta alla vite: L vite <="),"") ->  | J32: =IF($Q$15=1,IF(B34/2*(2^0.5)/2<=B8,"",CONCATENATE(ROUND(4/2^0.5*B8,0)," mm")),"") -> 
A33: d1 = | B33: =IF(Viti!$S$4=1,VLOOKUP(Viti!$T$4,Viti!$B$5:$P$24,7),VLOOKUP(Viti!$T$4,Viti!$B$25:$P$45,7)) -> 5.2 | C33: mm | D33: =IF($Q$15=1,IF(B35/2*(2^0.5)/2<=B11/2*1/(COS(RADIANS(45)-O13)),"","- altezza travetto non adatta alla vite: L vite <="),"") ->  | J33: =IF($Q$15=1,IF(B35/2*(2^0.5)/2<=B11/2*1/(COS(RADIANS(45)-O13)),"",CONCATENATE(ROUND(2/2^0.5*B11/(COS(RADIANS(45)-O13)),0)," mm")),"") -> 
A34: LVite = | B34: =IF(Viti!$S$4=1,VLOOKUP(Viti!$T$4,Viti!$B$5:$P$24,10),VLOOKUP(Viti!$T$4,Viti!$B$25:$P$45,10)) -> 200 | C34: mm | M34: Connettori impiegati: → | S34: n0 = | T34: 1 | U34: n90 = | V34: 3
S35: neff,ax = | T35: =T34^0.9*V34 -> 3 | U35: -
A36: kmod = | B36: =B22 -> 0.9 | C36: - | G36: kmod = | H36: =H22 -> 0.9 | I36: -
A37: gL = | B37: =Prescrizioni!$F$4 -> 1.3 | C37: - | G37: gL = | H37: =Prescrizioni!$F$3 -> 1.5 | I37: - | N37: INSTABILITA'
A38: gm2 = | B38: 1.25 | C38: - | G38: gm2 = | H38: 1.25 | I38: - | N38: ch = | O38: =(0.19+0.012*$B$32)*((VLOOKUP(Materiali!$B$33,Materiali!$B$5:$O$32,13)))*((90+90)/180) -> 110.11 | P38: MPa
A39: gm1 = | B39: 1.1 | C39: - | G39: gm1 = | H39: 1.1 | I39: - | N39: Nk,i = | O39: =($O$38*210000*PI()*$B$33^4/64)^0.5/10^3 -> 28.80810328 | P39: kN
A40: Rax,90°,Rd,T = | B40: =IF(Q15=1,($B$30*(B$32)*($B$34/2)/(1.2*(COS(RADIANS(90)))^2+(SIN(RADIANS(90)))^2)/10^3)*((VLOOKUP(Materiali!$B$33,Materiali!$B$5:$O$32,13))/350)^0.8*B36/B37,($B$30*(B$32)*($V$24)/(1.2*(COS(RADIANS(90)))^2+(SIN(RADIANS(90)))^2)/10^3)*((VLOOKUP(Materiali!$B$33,Materiali!$B$5:$O$32,13))/350)^0.8*B36/B37) -> 7.830231244 | C40: kN | G40: Rax,90°,Rd,T = | H40: =IF(Q15=1,($B$30*(B$32)*($B$34/2)/(1.2*(COS(RADIANS(90)))^2+(SIN(RADIANS(90)))^2)/10^3)*((VLOOKUP(Materiali!$B$33,Materiali!$B$5:$O$32,13))/350)^0.8*H36/H37,($B$30*(B$32)*($V$24)/(1.2*(COS(RADIANS(90)))^2+(SIN(RADIANS(90)))^2)/10^3)*((VLOOKUP(Materiali!$B$33,Materiali!$B$5:$O$32,13))/350)^0.8*H36/H37) -> 6.786200411 | I40: kN | N40: Npl,k = | O40: =PI()/4*$B$33^2*$B$31/10^3 -> 20.17530802 | P40: kN
A41: Rax,90°,Rd,C = | B41: =IF($Q$15=1,$B$40,($B$30*(B$32)*($R$24)/(1.2*(COS(RADIANS(90)))^2+(SIN(RADIANS(90)))^2)/10^3)*((VLOOKUP(Materiali!$B$33,Materiali!$B$5:$O$32,13))/350)^0.8*B36/B37) -> 7.830231244 | C41: kN | G41: Rax,90°,Rd,C = | H41: =IF($Q$15=1,$H$40,($B$30*(B$32)*($R$24)/(1.2*(COS(RADIANS(90)))^2+(SIN(RADIANS(90)))^2)/10^3)*((VLOOKUP(Materiali!$B$33,Materiali!$B$5:$O$32,13))/350)^0.8*H36/H37) -> 6.786200411 | I41: kN | N41: lk = | O41: =(O40/O39)^0.5 -> 0.8368598926 | P41: -
A42: Npl,d = | B42: =PI()/4*$B$33^2*$B$31/10^3*1/B39 -> 18.34118911 | C42: kN | G42: Npl,d = | H42: =PI()/4*$B$33^2*$B$31/10^3*1/H39 -> 18.34118911 | I42: kN | N42: kc = | O42: =IF(O41^2<=0.2,1,1/(O43+(O43^2-O41^2)^0.5)) -> 0.6390361049 | P42: -
A43: kc = | B43: =O42 -> 0.6390361049 | C43: - | G43: kc = | H43: =O42 -> 0.6390361049 | I43: - | N43: k = | O43: =0.5*(1+0.49*(O41-0.2)+O41^2) -> 1.006197914
A44: Rax,Rd,C = | B44: =MIN(B41,B42*B43) -> 7.830231244 | C44: kN | G44: Rax,Rd,C = | H44: =MIN(H41,H42*H43) -> 6.786200411 | I44: kN
A46: Rc,90,A = | B46: =2^0.5/2*(B44+MIN(B44,B40)) -> 11.07361922 | C46: kN | G46: VRd = | H46: =2^0.5/2*(H44+MIN(H44,H40)) -> 9.597136659 | I46: kN
A54: Numero coppie di connettori impiegate: → | G54: ncoppie = | H54: 1
G55: neff = | H55: =H54^0.9 -> 1 | I55: -
A57: Rc,90,d = | B57: =H54*MIN(B46:B46) -> 11.07361922 | C57: kN | G57: Rc,90,d = | H57: =H54*MIN(H46:H46) -> 9.597136659 | I57: kN
A58: =IF(B57>$B$14,"VERIFICA SODDISFATTA","VERIFICA NON SODDISFATTA") -> VERIFICA SODDISFATTA | G58: =IF(H57>$B$14,"VERIFICA SODDISFATTA","VERIFICA NON SODDISFATTA") -> VERIFICA SODDISFATTA
A59: =IF(Q15=2,"VERIFICA A TAGLIO A LATO DEL TRAVETTO DI FALDA (viti posizionate a filo bordo superiore)","VERIFICA A TAGLIO A LATO DEL TRAVETTO DI FALDA (viti posizionate nel centro del piano di taglio)") -> VERIFICA A TAGLIO A LATO DEL TRAVETTO DI FALDA (viti posizionate nel centro del piano di taglio)
A61: EN 1995:2008 | G61: NTC '08
A62: kmod = | B62: =H62 -> 0.9 | C62: - | G62: kmod = | H62: =H22 -> 0.9 | I62: -
A64: Angolo inserimento connettore: a [°] = | E64: 45
A66: fax,k,90° = | B66: =B30 -> 13.1 | C66: MPa | D66: =IF(Q15=1,IF(B34/2*COS(O13)<=B11/2,"","- altezza travetto non adatta alla vite: L vite <="),IF(V23*SIN(O28-O13)<=B11/2,"","- altezza travetto non adatta alla vite: L vite <=")) ->  | J66: =IF(Q15=1,IF(B34/2*COS(O13)<=B11/2,"",CONCATENATE(ROUND(B11/COS(O13),0)," mm")),IF(V23*SIN(O28-O13)<=B11/2,"",CONCATENATE(ROUND(V23+V24,0)," mm"))) -> 
A67: fy,k = | B67: =B31 -> 950 | C67: MPa | D67: =IF(Q15=1,IF(B34/2*SIN(RADIANS(45)-O13)<=B11/2,"","- altezza travetto non adatta alla vite: L vite <="),"") ->  | J67: =IF(Q15=1,IF(B34/2*SIN(RADIANS(45)-O13)<=B11/2,"",CONCATENATE(ROUND(B11/SIN(RADIANS(45)-O13),0)," mm")),"") -> 
A68: d = | B68: =B32 -> 8 | C68: mm | D68: =IF(Q15=1,IF(B34/2*(2^0.5)/2<=B8,"","- base trave non adatta alla vite: L vite <="),"") ->  | J68: =IF(Q15=1,IF(B34/2*(2^0.5)/2<=B8,"",CONCATENATE(ROUND(4/2^0.5*B8,0)," mm")),"") -> 
A69: d1 = | B69: =B33 -> 5.2 | C69: mm | D69: =IF(Q15=1,IF(B35/2*(2^0.5)/2<=B11/2*1/(COS(RADIANS(45)-O13)),"","- altezza travetto non adatta alla vite: L vite <="),"") ->  | J69: =IF(Q15=1,IF(B35/2*(2^0.5)/2<=B11/2*1/(COS(RADIANS(45)-O13)),"",CONCATENATE(ROUND(2/2^0.5*B11/(COS(RADIANS(45)-O13)),0)," mm")),"") -> 
A70: LVite = | B70: =B34 -> 200 | C70: mm
A72: kmod = | B72: =B62 -> 0.9 | C72: - | G72: kmod = | H72: =H62 -> 0.9 | I72: -
A73: gL = | B73: =Prescrizioni!$F$4 -> 1.3 | C73: - | G73: gL = | H73: =Prescrizioni!$F$3 -> 1.5 | I73: - | N73: INSTABILITA'
A74: gm2 = | B74: 1.25 | C74: - | G74: gm2 = | H74: 1.25 | I74: - | N74: ch = | O74: =(0.19+0.012*$B$32)*((VLOOKUP(Materiali!$B$33,Materiali!$B$5:$O$32,13)))*((90+$E$28+$B$13)/180) -> 92.79779879 | P74: MPa
A75: gm1 = | B75: 1.1 | C75: - | G75: gm2 = | H75: 1.1 | I75: - | N75: Nk,i = | O75: =($O$74*210000*PI()*$B$33^4/64)^0.5/10^3 -> 26.44661673 | P75: kN
A76: Rax,90°,Rd,T = | B76: =IF($Q$15=1,($B$30*(B$32)*($B$34/2)/(1.2*(COS(RADIANS(45)-$O$13))^2+(SIN(RADIANS(45)-$O$13))^2)/10^3)*((VLOOKUP(Materiali!$B$33,Materiali!$B$5:$O$32,13))/350)^0.8*B72/B73,($B$30*(B$32)*($V$23)/(1.2*(COS(RADIANS(90)))^2+(SIN(RADIANS(90)))^2)/10^3)*((VLOOKUP(Materiali!$B$33,Materiali!$B$5:$O$32,13))/350)^0.8*B72/B73) -> 6.779151752 | C76: kN | G76: Rax,90°,Rd,T = | H76: =IF(Q15=1,($B$30*$O$82*(B$32)*($B$34/2)/(1.2*(COS(RADIANS(45)-$O$13))^2+(SIN(RADIANS(45)-$O$13))^2)/10^3)*((VLOOKUP(Materiali!$B$33,Materiali!$B$5:$O$32,13))/350)^0.8*H72/H73,($B$30*$O$82*(B$32)*($V$23)/(1.2*(COS(RADIANS(45)-$O$13))^2+(SIN(RADIANS(45)-$O$13))^2)/10^3)*((VLOOKUP(Materiali!$B$33,Materiali!$B$5:$O$32,13))/350)^0.8*H72/H73) -> 4.349070676 | I76: kN | N76: Npl,k = | O76: =PI()/4*$B$33^2*$B$31/10^3 -> 20.17530802 | P76: kN
A77: Rax,90°,Rd,C = | B77: =IF($Q$15=1,($B$30*(B$32)*($B$34/2)/(1.2*(COS(RADIANS(45)+$O$13))^2+(SIN(RADIANS(45)+$O$13))^2)/10^3)*((VLOOKUP(Materiali!$B$33,Materiali!$B$5:$O$32,13))/350)^0.8*B72/B73,($B$30*(B$32)*($R$23)/(1.2*(COS(RADIANS(90)))^2+(SIN(RADIANS(90)))^2)/10^3)*((VLOOKUP(Materiali!$B$33,Materiali!$B$5:$O$32,13))/350)^0.8*B72/B73) -> 7.493373183 | C77: kN | G77: Rax,90°,Rd,C = | H77: =IF($Q$15=1,($B$30*$O$83*(B$32)*($B$34/2)/(1.2*(COS(RADIANS(45)+$O$13))^2+(SIN(RADIANS(45)+$O$13))^2)/10^3)*((VLOOKUP(Materiali!$B$33,Materiali!$B$5:$O$32,13))/350)^0.8*H72/H73,($B$30*$O$83*(B$32)*($R$23)/(1.2*(COS(RADIANS(45)+$O$13))^2+(SIN(RADIANS(45)+$O$13))^2)/10^3)*((VLOOKUP(Materiali!$B$33,Materiali!$B$5:$O$32,13))/350)^0.8*H72/H73) -> 6.494256759 | I77: kN | N77: lk = | O77: =(O76/O75)^0.5 -> 0.8734238089 | P77: -
A78: Npl,d = | B78: =PI()/4*$B$33^2*$B$31/10^3*1/B75 -> 18.34118911 | C78: kN | G78: Npl,d = | H78: =PI()/4*$B$33^2*$B$31/10^3*1/H75 -> 18.34118911 | I78: kN | N78: kc = | O78: =IF(O77^2<=0.2,1,1/(O79+(O79^2-O77^2)^0.5)) -> 0.616244306 | P78: -
A79: kc = | B79: =O78 -> 0.616244306 | C79: - | G79: kc = | H79: =O78 -> 0.616244306 | I79: - | N79: k = | O79: =0.5*(1+0.49*(O77-0.2)+O77^2) -> 1.046423408
A80: Rax,Rd,C = | B80: =MIN(B77,B78*B79) -> 7.493373183 | C80: kN | G80: Rax,Rd,C = | H80: =MIN(H77,H78*H79) -> 6.494256759 | I80: kN
A82: Rc,90,A = | B82: =2^0.5/2*(2*MIN(B80,B76)) -> 9.587168349 | C82: kN | G82: VRd = | H82: =2^0.5/2*(2*MIN(H80,H76)) -> 6.150514734 | I82: kN | N82: kax,t | O82: =IF((E64-B13)<45,0.3+0.7*(E64-B13)/45,1) -> 0.7402339786 | P82: -
N83: kax,c | O83: =IF((E64+B13)<45,0.3+0.7*(E64+B13)/45,1) -> 1
A85: Numero coppie di connettori impiegate: → | G85: ncoppie = | H85: =H54 -> 1
G86: neff = | H86: =H55 -> 1 | I86: -
N87: a1,min = | O87: =5*B68 -> 40 | P87: mm | Q87: =IF((2*H92+O87*H85)<=B10,"OK","NO") -> OK
A89: Rc,90,d = | B89: =H86*MIN(B82:B82) -> 9.587168349 | C89: kN | G89: Rc,90,d = | H89: =H86*MIN(H82:H82) -> 6.150514734 | I89: kN
A90: =IF(B89>$B$14,"VERIFICA SODDISFATTA","VERIFICA NON SODDISFATTA") -> VERIFICA SODDISFATTA | G90: =IF(H89>$B$14,"VERIFICA SODDISFATTA","VERIFICA NON SODDISFATTA") -> VERIFICA SODDISFATTA
A91: VERIFICA DELLE DISTANZE MINIME
A92: a1,CG,min = | B92: =B93 -> 40 | C92: mm | D92: =IF(B92<=R23*COS(RADIANS(R18+R19))+R21/2*TAN(RADIANS(R19)),"OK","NO") -> OK | G92: a2,CG,min = | H92: =4*B68 -> 32 | I92: mm | J92: =IF((2*H92+H93*H85)<=B10,"OK","NO") -> OK | O92: =R23*COS(RADIANS(R18+R19))+R21/2*TAN(RADIANS(R19)) -> 83.84615385
A93: a2,min = | B93: =O87 -> 40 | C93: mm | G93: a2,red = | H93: =2.5*B68 -> 20 | I93: mm | J93: =J92 -> OK | O93: =IF(H54=1,B10/2-H93/2,10000) -> 50
A99: NOTE PER L'UTILIZZO DEL FOGLIO
A101: 1) La presente relazione di calcolo è stata redatta in conformità alle normative vigenti alla data della stessa.
A102: 2) I parametri caratteristici delle viti sono in accordo a ETA 12/0373.
A103: 3) Il dimensionamento e la verifica degli elementi lignei devono svolgersi separatamente.
A104: 4) La presente relazione di calcolo non costituisce documento esecutivo e dovrà essere sempre conformata dal Vs. tecnico responsabile delle strutture o da tecnico abilitato.
A106: 5) I calcoli qui riportati dovranno essere IN OGNI CASO controllati e approvati dal Vostro tecnico responsabile delle strutture.
A108: 6) La società Roofrox Srl declina ogni responsabilità per utilizzi impropri del presente software di calcolo.
A109: 7) Il presente foglio non può essere modificato e/o distributo in alcun modo senza il consenso scritto di RoofRox Srl.

Sheet CONNESSIONI PIANE
A5: VERIFICHE SULLE CONNESSIONI
A7: DATI DI PROGETTO
A8: B = | B8: 200 | C8: mm
A9: H = | B9: 440 | C9: mm | P9: 4.26
A10: b = | B10: 120 | C10: mm | P10: 2.84
A11: h = | B11: 200 | C11: mm | P11: 1.79
A12: p = | B12: 0 | C12: % | P12: 3.29
A13: b = | B13: =DEGREES(ATAN(B12/100)) -> 0 | C13: [°] | N13: alfa rad | O13: =ATAN(B12/100) -> 0 | P13: 5.08
A14: VEd = | B14: 19 | C14: kN | P14: 3.09 | Q14: Tipologia inserimento viti
A15: Legno = | P15: 1.99 | Q15: 2
P16: 2.89
Q17: Lunghezze efficaci filetti
Q18: a | R18: =E28 -> 45
A19: =IF(Q15=2,"VERIFICA A TAGLIO A LATO DELLA TRAVE (viti posizionate a filo bordo superiore)","VERIFICA A TAGLIO A LATO DELLA TRAVE (viti posizionate nel centro del piano di taglio)") -> VERIFICA A TAGLIO A LATO DELLA TRAVE (viti posizionate a filo bordo superiore) | Q19: b | R19: =B13 -> 0
A21: EN 1995:2014 | G21: NTC '18 | Q21: h | R21: =B11 -> 200
A22: kmod = | B22: 0.9 | C22: - | G22: kmod = | H22: =B22 -> 0.9 | I22: - | Q22: Ltot | R22: =B34 -> 280
Q23: L1 | R23: =(R21/2)/(SIN(RADIANS(R18+R19))) -> 141.4213562 | U23: L2 | V23: =(R21/2)*1/TAN((RADIANS(R18+R19)))/(COS(RADIANS(R18-R19))) -> 141.4213562
A24: Scelta connettore: | Q24: L3 | R24: =R22-R23 -> 138.5786438 | U24: L4 | V24: =R22-V23 -> 138.5786438
A28: Angolo inserimento connettore: a [°] = | E28: 45 | N28: alfa rad | O28: =RADIANS(E28) -> 0.7853981634 | P28: rad
A30: fax,k,90° = | B30: =IF(Viti2!$S$4=1,VLOOKUP(Viti2!$T$4,Viti2!$B$5:$P$24,15),VLOOKUP(Viti2!$T$4,Viti2!$B$25:$P$45,15)) -> 13.1 | C30: MPa | D30: =IF($Q$16=1,IF(B34/2*COS(O13)<=B11/2,"","- altezza travetto non adatta alla vite: L vite <="),IF(R24*2^0.5/2<=B8,"","- larghezza trave principale non adatta alla vite: L vite <=")) ->  | J30: =IF($Q$16=1,IF(B34/2*COS(O13)<=B11/2,"",CONCATENATE(ROUND(B11/COS(O13),0)," mm")),IF(R24*2^0.5/2<=B8,"",CONCATENATE(ROUND(R24+R23,0)," mm"))) -> 
A31: fy,k = | B31: 950 | C31: MPa | D31: =IF($Q$15=1,IF(B34/2*SIN(RADIANS(45)-O13)<=B11/2,"","- altezza travetto non adatta alla vite: L vite <="),IF((R24+V24)*2^0.5/2<=B9,"","- altezza trave principale non adatta alla vite: L vite <=")) ->  | J31: =IF(Q15=1,IF(B34/2*SIN(RADIANS(45)-O13)<=B11/2,"",CONCATENATE(ROUND(B11/SIN(RADIANS(45)-O13),0)," mm")),IF((R24+V24)*2^0.5/2<=B9,"",CONCATENATE(ROUND(R23+R24,0)," mm"))) -> 
A32: d = | B32: =IF(Viti2!$S$4=1,VLOOKUP(Viti2!$T$4,Viti2!$B$5:$P$24,8),VLOOKUP(Viti2!$T$4,Viti2!$B$25:$P$45,8)) -> 8 | C32: mm | D32: =IF($Q$15=1,IF(B34/2*(2^0.5)/2<=B8,"","- base trave non adatta alla vite: L vite <="),"") ->  | J32: =IF($Q$15=1,IF(B34/2*(2^0.5)/2<=B8,"",CONCATENATE(ROUND(4/2^0.5*B8,0)," mm")),"") -> 
A33: d1 = | B33: =IF(Viti2!$S$4=1,VLOOKUP(Viti2!$T$4,Viti2!$B$5:$P$24,7),VLOOKUP(Viti2!$T$4,Viti2!$B$25:$P$45,7)) -> 5.2 | C33: mm | D33: =IF($Q$15=1,IF(B35/2*(2^0.5)/2<=B11/2*1/(COS(RADIANS(45)-O13)),"","- altezza travetto non adatta alla vite: L vite <="),"") ->  | J33: =IF($Q$15=1,IF(B35/2*(2^0.5)/2<=B11/2*1/(COS(RADIANS(45)-O13)),"",CONCATENATE(ROUND(2/2^0.5*B11/(COS(RADIANS(45)-O13)),0)," mm")),"") -> 
A34: LVite = | B34: =IF(Viti2!$S$4=1,VLOOKUP(Viti2!$T$4,Viti2!$B$5:$P$24,10),VLOOKUP(Viti2!$T$4,Viti2!$B$25:$P$45,10)) -> 280 | C34: mm | M34: Connettori impiegati: → | S34: n0 = | T34: 1 | U34: n90 = | V34: 3
S35: neff,ax = | T35: =T34^0.9*V34 -> 3 | U35: -
A36: kmod = | B36: =B22 -> 0.9 | C36: - | G36: kmod = | H36: =H22 -> 0.9 | I36: -
A37: gconn = | B37: =Prescrizioni!$F$4 -> 1.3 | C37: - | G37: gconn = | H37: =Prescrizioni!$F$3 -> 1.5 | I37: - | N37: INSTABILITA'
A38: gm2 = | B38: 1.25 | C38: - | G38: gm2 = | H38: 1.25 | I38: - | N38: ch = | O38: =(0.19+0.012*$B$32)*((VLOOKUP(Materiali!$B$33,Materiali!$B$5:$O$32,13)))*((90+$E$28+45)/180) -> 110.11 | P38: MPa
A39: gm1 = | B39: 1.1 | C39: - | G39: gm1 = | H39: 1.1 | I39: - | N39: Nk,i = | O39: =($O$38*210000*PI()*$B$33^4/64)^0.5/10^3 -> 28.80810328 | P39: kN
A40: Fax,T,90°,Rd = | B40: =IF(Q15=1,($B$30*(B$32)*($B$34/2)/(1.2*(COS(RADIANS(90)))^2+(SIN(RADIANS(90)))^2)/10^3)*((VLOOKUP(Materiali!$B$33,Materiali!$B$5:$O$32,13))/350)^0.8*B36/B37,($B$30*(B$32)*($V$24)/(1.2*(COS(RADIANS(90)))^2+(SIN(RADIANS(90)))^2)/10^3)*((VLOOKUP(Materiali!$B$33,Materiali!$B$5:$O$32,13))/350)^0.8*B36/B37) -> 10.85102826 | C40: kN | G40: Fax,T,90°,Rd = | H40: =IF(Q15=1,($B$30*(B$32)*($B$34/2)/(1.2*(COS(RADIANS(90)))^2+(SIN(RADIANS(90)))^2)/10^3)*((VLOOKUP(Materiali!$B$33,Materiali!$B$5:$O$32,13))/350)^0.8*H36/H37,($B$30*(B$32)*($V$24)/(1.2*(COS(RADIANS(90)))^2+(SIN(RADIANS(90)))^2)/10^3)*((VLOOKUP(Materiali!$B$33,Materiali!$B$5:$O$32,13))/350)^0.8*H36/H37) -> 9.404224493 | I40: kN | N40: Npl,k = | O40: =PI()/4*$B$33^2*$B$31/10^3 -> 20.17530802 | P40: kN
A41: Fax,C,90°,Rd = | B41: =IF($Q$15=1,$B$40,($B$30*(B$32)*($R$24)/(1.2*(COS(RADIANS(90)))^2+(SIN(RADIANS(90)))^2)/10^3)*((VLOOKUP(Materiali!$B$33,Materiali!$B$5:$O$32,13))/350)^0.8*B36/B37) -> 10.85102826 | C41: kN | G41: Fax,C,90°,Rd = | H41: =IF($Q$15=1,$H$40,($B$30*(B$32)*($R$24)/(1.2*(COS(RADIANS(90)))^2+(SIN(RADIANS(90)))^2)/10^3)*((VLOOKUP(Materiali!$B$33,Materiali!$B$5:$O$32,13))/350)^0.8*H36/H37) -> 9.404224493 | I41: kN | N41: lk = | O41: =(O40/O39)^0.5 -> 0.8368598926 | P41: -
A42: Npl,d = | B42: =PI()/4*$B$33^2*$B$31/10^3*1/B39 -> 18.34118911 | C42: kN | G42: Npl,d = | H42: =PI()/4*$B$33^2*$B$31/10^3*1/H39 -> 18.34118911 | I42: kN | N42: kc = | O42: =IF(O41^2<=0.2,1,1/(O43+(O43^2-O41^2)^0.5)) -> 0.6390361049 | P42: -
A43: χ = | B43: =O42 -> 0.6390361049 | C43: - | G43: χ = | H43: =O42 -> 0.6390361049 | I43: - | N43: k = | O43: =0.5*(1+0.49*(O41-0.2)+O41^2) -> 1.006197914
A44: Fax,Rd = | B44: =MIN(B41,B42*B43) -> 10.85102826 | C44: kN | G44: Fax,Rd = | H44: =MIN(H41,H42*H43) -> 9.404224493 | I44: kN
A46: VRd = | B46: =2^0.5/2*(B44+MIN(B44,B40)) -> 15.34567133 | C46: kN | G46: VRd = | H46: =2^0.5/2*(H44+MIN(H44,H40)) -> 13.29958182 | I46: kN
A54: Numero coppie di connettori impiegate: → | G54: ncoppie = | H54: 2
G55: neff = | H55: =H54^0.9 -> 1.866065983 | I55: -
A57: Rc,90,d = | B57: =H54*MIN(B46:B46) -> 30.69134266 | C57: kN | G57: Rc,90,d = | H57: =H54*MIN(H46:H46) -> 26.59916364 | I57: kN
A58: =IF(B57>$B$14,"VERIFICA SODDISFATTA","VERIFICA NON SODDISFATTA") -> VERIFICA SODDISFATTA | G58: =IF(H57>$B$14,"VERIFICA SODDISFATTA","VERIFICA NON SODDISFATTA") -> VERIFICA SODDISFATTA
A59: =A19 -> VERIFICA A TAGLIO A LATO DELLA TRAVE (viti posizionate a filo bordo superiore)
A61: EN 1995:2008 | G61: NTC '18
A62: kmod = | B62: =B22 -> 0.9 | C62: - | G62: kmod = | H62: =B62 -> 0.9 | I62: -
A64: Angolo inserimento connettore: a [°] = | E64: 45
A66: fax,k,90° = | B66: =B30 -> 13.1 | C66: MPa | D66: =IF(Q15=1,IF(B34/2*COS(O13)<=B11/2,"","- altezza travetto non adatta alla vite: L vite <="),IF(V23*SIN(O28-O13)<=B11/2,"","- altezza travetto non adatta alla vite: L vite <=")) ->  | J66: =IF(Q15=1,IF(B34/2*COS(O13)<=B11/2,"",CONCATENATE(ROUND(B11/COS(O13),0)," mm")),IF(V23*SIN(O28-O13)<=B11/2,"",CONCATENATE(ROUND(V23+V24,0)," mm"))) -> 
A67: fy,k = | B67: =B31 -> 950 | C67: MPa | D67: =IF(Q15=1,IF(B34/2*SIN(RADIANS(45)-O13)<=B11/2,"","- altezza travetto non adatta alla vite: L vite <="),"") ->  | J67: =IF(Q15=1,IF(B34/2*SIN(RADIANS(45)-O13)<=B11/2,"",CONCATENATE(ROUND(B11/SIN(RADIANS(45)-O13),0)," mm")),"") -> 
A68: d = | B68: =B32 -> 8 | C68: mm | D68: =IF(Q15=1,IF(B34/2*(2^0.5)/2<=B8,"","- base trave non adatta alla vite: L vite <="),"") ->  | J68: =IF(Q15=1,IF(B34/2*(2^0.5)/2<=B8,"",CONCATENATE(ROUND(4/2^0.5*B8,0)," mm")),"") -> 
A69: d1 = | B69: =B33 -> 5.2 | C69: mm | D69: =IF(Q15=1,IF(B35/2*(2^0.5)/2<=B11/2*1/(COS(RADIANS(45)-O13)),"","- altezza travetto non adatta alla vite: L vite <="),"") ->  | J69: =IF(Q15=1,IF(B35/2*(2^0.5)/2<=B11/2*1/(COS(RADIANS(45)-O13)),"",CONCATENATE(ROUND(2/2^0.5*B11/(COS(RADIANS(45)-O13)),0)," mm")),"") -> 
A70: LVite = | B70: =B34 -> 280 | C70: mm
A72: kmod = | B72: =B62 -> 0.9 | C72: - | G72: kmod = | H72: =H62 -> 0.9 | I72: -
A73: gL = | B73: =Prescrizioni!$F$4 -> 1.3 | C73: - | G73: gL = | H73: =Prescrizioni!$F$3 -> 1.5 | I73: - | N73: INSTABILITA'
A74: gm2 = | B74: 1.25 | C74: - | G74: gm2 = | H74: 1.25 | I74: - | N74: ch = | O74: =(0.19+0.012*$B$32)*((VLOOKUP(Materiali!$B$33,Materiali!$B$5:$O$32,13)))*((90+$E$28+$B$13)/180) -> 82.5825 | P74: MPa
A75: gm1 = | B75: 1.1 | C75: - | G75: gm2 = | H75: 1.1 | I75: - | N75: Nk,i = | O75: =($O$74*210000*PI()*$B$33^4/64)^0.5/10^3 -> 24.94854927 | P75: kN
A76: Fax,T,90°,Rd = | B76: =IF($Q$15=1,($B$30*(B$32)*($B$34/2)/(1.2*(COS(RADIANS(45)-$O$13))^2+(SIN(RADIANS(45)-$O$13))^2)/10^3)*((VLOOKUP(Materiali!$B$33,Materiali!$B$5:$O$32,13))/350)^0.8*B72/B73,($B$30*(B$32)*($V$23)/(1.2*(COS(RADIANS(90)))^2+(SIN(RADIANS(90)))^2)/10^3)*((VLOOKUP(Materiali!$B$33,Materiali!$B$5:$O$32,13))/350)^0.8*B72/B73) -> 11.07361922 | C76: kN | G76: Fax,T,90°,Rd = | H76: =IF(Q15=1,($B$30*(B$32)*($B$34/2)/(1.2*(COS(RADIANS(45)-$O$13))^2+(SIN(RADIANS(45)-$O$13))^2)/10^3)*((VLOOKUP(Materiali!$B$33,Materiali!$B$5:$O$32,13))/350)^0.8*H72/H73,($B$30*(B$32)*($V$23)/(1.2*(COS(RADIANS(45)-$O$13))^2+(SIN(RADIANS(45)-$O$13))^2)/10^3)*((VLOOKUP(Materiali!$B$33,Materiali!$B$5:$O$32,13))/350)^0.8*H72/H73) -> 8.72466969 | I76: kN | N76: Npl,k = | O76: =PI()/4*$B$33^2*$B$31/10^3 -> 20.17530802 | P76: kN
A77: Fax,C,90°,Rd = | B77: =IF($Q$15=1,($B$30*(B$32)*($B$34/2)/(1.2*(COS(RADIANS(45)+$O$13))^2+(SIN(RADIANS(45)+$O$13))^2)/10^3)*((VLOOKUP(Materiali!$B$33,Materiali!$B$5:$O$32,13))/350)^0.8*B72/B73,($B$30*(B$32)*($R$23)/(1.2*(COS(RADIANS(90)))^2+(SIN(RADIANS(90)))^2)/10^3)*((VLOOKUP(Materiali!$B$33,Materiali!$B$5:$O$32,13))/350)^0.8*B72/B73) -> 11.07361922 | C77: kN | G77: Fax,C,90°,Rd = | H77: =H76 -> 8.72466969 | I77: kN | N77: lk = | O77: =(O76/O75)^0.5 -> 0.8992644777 | P77: -
A78: Npl,d = | B78: =PI()/4*$B$33^2*$B$31/10^3*1/B75 -> 18.34118911 | C78: kN | G78: Npl,d = | H78: =PI()/4*$B$33^2*$B$31/10^3*1/H75 -> 18.34118911 | I78: kN | N78: kc = | O78: =IF(O77^2<=0.2,1,1/(O79+(O79^2-O77^2)^0.5)) -> 0.6002827698 | P78: -
A79: χ = | B79: =O78 -> 0.6002827698 | C79: - | G79: χ = | H79: =O78 -> 0.6002827698 | I79: - | N79: k = | O79: =0.5*(1+0.49*(O77-0.2)+O77^2) -> 1.075658097
A80: Fax,Rd = | B80: =MIN(B77,B78*B79) -> 11.0098998 | C80: kN | G80: Fax,Rd = | H80: =MIN(H77,H78*H79) -> 8.72466969 | I80: kN
A82: VRd = | B82: =2^0.5/2*(2*MIN(B80,B76)) -> 15.57034962 | C82: kN | G82: VRd = | H82: =2^0.5/2*(2*MIN(H80,H76)) -> 12.3385462 | I82: kN
A85: Numero coppie di connettori impiegate: → | G85: ncoppie = | H85: =H54 -> 2
G86: neff = | H86: =H55 -> 1.866065983 | I86: -
A89: Rc,90,d = | B89: =H86*MIN(B82:B82) -> 29.05529977 | C89: kN | G89: Rc,90,d = | H89: =H86*MIN(H82:H82) -> 23.02454135 | I89: kN
A90: =IF(B89>$B$14,"VERIFICA SODDISFATTA","VERIFICA NON SODDISFATTA") -> VERIFICA SODDISFATTA | G90: =IF(H89>$B$14,"VERIFICA SODDISFATTA","VERIFICA NON SODDISFATTA") -> VERIFICA SODDISFATTA | O90: a1,min = | P90: =5*B68 -> 40 | Q90: mm | R90: =IF((2*H92+P90*H85)<=B10,"OK","NO") -> NO
A91: VERIFICA DELLE DISTANZE MINIME
A92: a1,CG = | B92: =B93 -> 40 | C92: mm | D92: =IF(B92<=R23*SIN(RADIANS(B13+E28)),"OK","NO") -> OK | G92: a2,CG = | H92: =4*B68 -> 32 | I92: mm | J92: =IF((2*H92+H93*H85)<=B10,"OK","NO") -> OK
A93: a2,min = | B93: =P90 -> 40 | C93: mm | G93: a2,red = | H93: =2.5*B68 -> 20 | I93: mm | J93: =J92 -> OK | N93: =R23*SIN(RADIANS(B13+E28)) -> 100
A100: NOTE PER L'UTILIZZO DEL FOGLIO
A102: 1) La presente relazione di calcolo è stata redatta in conformità alle normative vigenti alla data della stessa.
A103: 2) I parametri caratteristici delle viti sono in accordo a ETA 12/0373.
A104: 3) Il dimensionamento e la verifica degli elementi lignei devono svolgersi separatamente.
A105: 4) La presente relazione di calcolo non costituisce documento esecutivo e dovrà essere sempre conformata dal Vs. tecnico responsabile delle strutture o da tecnico abilitato.
A107: 5) I calcoli qui riportati dovranno essere IN OGNI CASO controllati e approvati dal Vostro tecnico responsabile delle strutture.
A109: 6) La società Roofrox Srl declina ogni responsabilità per utilizzi impropri del presente software di calcolo.
A110: 7) Il presente foglio non può essere modificato e/o distributo in alcun modo senza il consenso scritto di RoofRox Srl.

Sheet Foglio2 (hidden)
E16: a | F16: 45
E17: b | F17: 0
E19: h | F19: 200
E20: Ltot | F20: 280
E21: L1 | F21: =(F19/2)/(SIN(RADIANS(F16+F17))) -> 141.4213562 | I21: L2 | J21: =(F19/2)*_xlfn.COT(RADIANS(F16+F17))/(COS(RADIANS(F16-F17))) -> 
E22: L3 | F22: =F20-F21 -> 138.5786438 | I22: L4 | J22: =F20-J21 -> 

Sheet Materiali (hidden)
C2: Resistenze legno lamellare di conifera omogeneo e combinato (EN 1194: 1999) | W2: Barre d'armatura
D3: [N/mmq] | E3: [N/mmq] | F3: [N/mmq] | G3: [N/mmq] | H3: [N/mmq] | I3: [N/mmq] | J3: [N/mmq] | K3: [N/mmq] | L3: [N/mmq] | M3: [N/mmq] | N3: [kg/mc] | O3: [kg/mc]
B4: CONT | D4: fm,g,k | E4: ft,0,g,k | F4: ft,90,g,k | G4: fc,0,g,k | H4: fc,90,g,k | I4: fv,g,k | J4: E0,g,mean | K4: E0,g,05 | L4: E90,g,mean | M4: Gg,mean | N4: rg,k | O4: rm | V4: CONT | W4: fi | X4: A
B5: 1 | C5: GL20h | D5: 20 | E5: 16 | F5: 0.5 | G5: 20 | H5: 2.5 | I5: 3.5 | J5: 8400 | K5: 7000 | L5: 300 | M5: 650 | N5: 340 | O5: 370 | V5: 1 | W5: 10 | X5: =PI()*W5^2/4 -> 78.53981634
B6: =B5+1 -> 2 | C6: GL20c | D6: 20 | E6: 15 | F6: 0.5 | G6: 18.5 | H6: 2.5 | I6: 3.5 | J6: 10400 | K6: 8600 | L6: 300 | M6: 250 | N6: 355 | O6: 390 | V6: 2 | W6: 12 | X6: =PI()*W6^2/4 -> 113.0973355
B7: =B6+1 -> 3 | C7: GL22h | D7: 22 | E7: 17.6 | F7: 0.5 | G7: 22 | H7: 2.5 | I7: 3.5 | J7: 10500 | K7: 8800 | L7: 300 | M7: 650 | N7: 370 | O7: 410 | P7: uni en 14080:2013 | V7: 3 | W7: 14 | X7: =PI()*W7^2/4 -> 153.93804
B8: 4 | C8: GL22c | D8: 22 | E8: 16 | F8: 0.5 | G8: 20 | H8: 2.5 | I8: 3.5 | J8: 10400 | K8: 8600 | L8: 300 | M8: 650 | N8: 355 | O8: 390 | P8: uni en 14080:2013 | V8: 4 | W8: 16 | X8: =PI()*W8^2/4 -> 201.0619298
B9: 5 | C9: GL24h | D9: 24 | E9: 19.2 | F9: 0.5 | G9: 24 | H9: 2.5 | I9: 3.5 | J9: 11500 | K9: 9600 | L9: 300 | M9: 650 | N9: 385 | O9: 420 | P9: uni en 14080:2013 | V9: 2
B10: 6 | C10: GL24c | D10: 24 | E10: 17 | F10: 0.5 | G10: 21.5 | H10: 2.5 | I10: 3.5 | J10: 11000 | K10: 9100 | L10: 300 | M10: 650 | N10: 365 | O10: 400 | P10: uni en 14080:2013
B11: 7 | C11: GL26h | D11: 26 | E11: 20.8 | F11: 0.5 | G11: 26 | H11: 2.5 | I11: 3.5 | J11: 12100 | K11: 10100 | L11: 300 | M11: 650 | N11: 405 | O11: 445 | P11: uni en 14080:2013 | V11: CONT | W11: numeri
B12: 8 | C12: GL26c | D12: 26 | E12: 19 | F12: 0.5 | G12: 23.5 | H12: 2.5 | I12: 3.5 | J12: 12000 | K12: 10000 | L12: 300 | M12: 650 | N12: 385 | O12: 420 | P12: uni en 14080:2013 | V12: 1 | W12: 0
B13: 9 | C13: GL28h | D13: 28 | E13: 22.3 | F13: 0.5 | G13: 28 | H13: 2.5 | I13: 3.5 | J13: =12.6*1000 -> 12600 | K13: 10500 | L13: 300 | M13: 650 | N13: 425 | O13: 460 | P13: uni en 14080:2013 | V13: 2 | W13: 1
B14: 10 | C14: GL28c | D14: 28 | E14: 19.5 | F14: 0.5 | G14: 24 | H14: 2.5 | I14: 3.5 | J14: 12500 | K14: 10400 | L14: 300 | M14: 650 | N14: 390 | O14: 420 | P14: uni en 14080:2013 | V14: 3 | W14: 2
B15: 11 | C15: GL30h | D15: 30 | E15: 24 | F15: 0.5 | G15: 30 | H15: 2.5 | I15: 3.5 | J15: 13600 | K15: 11300 | L15: 300 | M15: 650 | N15: 430 | O15: 480 | P15: uni en 14080:2013 | V15: 1
B16: 12 | C16: GL30c | D16: 30 | E16: 19.5 | F16: 0.5 | G16: 24.5 | H16: 2.5 | I16: 3.5 | J16: 13000 | K16: 10800 | L16: 300 | M16: 650 | N16: 390 | O16: 430 | P16: uni en 14080:2013
B17: 13 | C17: GL32h | D17: 32 | E17: 25.6 | F17: 0.5 | G17: 32 | H17: 2.5 | I17: 3.5 | J17: 14200 | K17: 11800 | L17: 300 | M17: 650 | N17: 440 | O17: 490 | P17: uni en 14080:2013
B18: 14 | C18: GL32c | D18: 32 | E18: 19.5 | F18: 0.5 | G18: 24.5 | H18: 2.5 | I18: 3.5 | J18: 13700 | K18: 11200 | L18: 300 | M18: 650 | N18: 400 | O18: 440 | P18: uni en 14080:2013
B19: 15 | C19: C14 | D19: 14 | E19: 8 | F19: 0.4 | G19: 16 | H19: 2 | I19: 1.7 | J19: =7*1000 -> 7000 | K19: =4.7*1000 -> 4700 | L19: =0.23*1000 -> 230 | M19: =0.44*1000 -> 440 | N19: 290 | O19: 350 | P19: prEN 338: 2002
B20: 16 | C20: C16 | D20: 16 | E20: 10 | F20: 0.5 | G20: 17 | H20: 2.2 | I20: 1.8 | J20: =8*1000 -> 8000 | K20: =5.4*1000 -> 5400 | L20: =0.27*1000 -> 270 | M20: =0.5*1000 -> 500 | N20: 310 | O20: 370 | P20: prEN 338: 2002
B21: 17 | C21: C18 | D21: 18 | E21: 11 | F21: 0.5 | G21: 18 | H21: 2.2 | I21: 2 | J21: =9*1000 -> 9000 | K21: =6*1000 -> 6000 | L21: =0.3*1000 -> 300 | M21: =0.56*1000 -> 560 | N21: 320 | O21: 380 | P21: prEN 338: 2002
B22: 18 | C22: C20 | D22: 20 | E22: 12 | F22: 0.5 | G22: 19 | H22: 2.3 | I22: 2.2 | J22: =9.5*1000 -> 9500 | K22: =6.4*1000 -> 6400 | L22: =0.32*1000 -> 320 | M22: =0.59*1000 -> 590 | N22: 330 | O22: 390 | P22: prEN 338: 2002
B23: 19 | C23: C22 | D23: 22 | E23: 13 | F23: 0.5 | G23: 20 | H23: 2.4 | I23: 2.4 | J23: =10*1000 -> 10000 | K23: =6.7*1000 -> 6700 | L23: =0.33*1000 -> 330 | M23: =0.63*1000 -> 630 | N23: 340 | O23: 410 | P23: prEN 338: 2002
B24: 20 | C24: C24 | D24: 24 | E24: 14 | F24: 0.5 | G24: 21 | H24: 2.5 | I24: 2.5 | J24: =11*1000 -> 11000 | K24: =7.4*1000 -> 7400 | L24: =0.37*1000 -> 370 | M24: =0.69*1000 -> 690 | N24: 350 | O24: 420 | P24: prEN 338: 2002
B25: 21 | C25: C27 | D25: 27 | E25: 16 | F25: 0.6 | G25: 22 | H25: 2.6 | I25: 2.8 | J25: =11.5*1000 -> 11500 | K25: =7.7*1000 -> 7700 | L25: =0.38*1000 -> 380 | M25: =0.72*1000 -> 720 | N25: 370 | O25: 450 | P25: prEN 338: 2002
B26: 22 | C26: C30 | D26: 30 | E26: 18 | F26: 0.6 | G26: 23 | H26: 2.7 | I26: 3 | J26: =12*1000 -> 12000 | K26: =8*1000 -> 8000 | L26: =0.4*1000 -> 400 | M26: =0.75*1000 -> 750 | N26: 380 | O26: 460 | P26: prEN 338: 2002
B27: 23 | C27: C35 | D27: 35 | E27: 21 | F27: 0.6 | G27: 25 | H27: 2.8 | I27: 3.4 | J27: =13*1000 -> 13000 | K27: =8.7*1000 -> 8700 | L27: =0.43*1000 -> 430 | M27: =0.81*1000 -> 810 | N27: 400 | O27: 480 | P27: prEN 338: 2002
B28: 24 | C28: C40 | D28: 40 | E28: 24 | F28: 0.6 | G28: 26 | H28: 2.9 | I28: 3.8 | J28: =14*1000 -> 14000 | K28: =9.4*1000 -> 9400 | L28: =0.47*1000 -> 470 | M28: =0.88*1000 -> 880 | N28: 420 | O28: 500 | P28: prEN 338: 2002
B29: 25 | C29: C45 | D29: 45 | E29: 27 | F29: 0.6 | G29: 27 | H29: 3.1 | I29: 3.8 | J29: =15*1000 -> 15000 | K29: =10*1000 -> 10000 | L29: =0.5*1000 -> 500 | M29: =0.94*1000 -> 940 | N29: 440 | O29: 520 | P29: prEN 338: 2002
B30: 26 | C30: C50 | D30: 50 | E30: 30 | F30: 0.6 | G30: 29 | H30: 3.2 | I30: 3.8 | J30: =16*1000 -> 16000 | K30: =10.7*1000 -> 10700 | L30: =0.53*1000 -> 530 | M30: =1*1000 -> 1000 | N30: 460 | O30: 550 | P30: prEN 338: 2002
B31: 27 | C31: D24 | D31: 24 | E31: 14 | F31: 0.6 | G31: 21 | H31: 7.8 | I31: 4 | J31: 10000 | K31: 8500 | L31: =0.67*1000 -> 670 | M31: =0.62*1000 -> 620 | N31: 485 | O31: 580
B32: 28 | C32: D30 | D32: 30 | E32: 18 | F32: 0.6 | G32: 23 | H32: 8 | I32: 4 | J32: 11000 | K32: 9200 | L32: 730 | M32: 690 | N32: 530 | O32: -
B33: 5 | D33: [N/mmq] | E33: [N/mmq] | F33: [N/mmq] | G33: [N/mmq] | H33: [N/mmq] | I33: [N/mmq] | J33: [N/mmq] | K33: [N/mmq] | L33: [N/mmq] | M33: [N/mmq] | N33: [kg/mc] | O33: [kg/mc]
D34: fm,g,k | E34: ft,0,g,k | F34: ft,90,g,k | G34: fc,0,g,k | H34: fc,90,g,k | I34: fv,g,k | J34: E0,g,mean | K34: E0,g,05 | L34: E90,g,mean | M34: Gg,mean | N34: rg,k | O34: rm
C35: Resistenze legno di confiere e di pioppo (prEN 338: 2002)
D40: [N/mmq] | E40: [N/mmq] | F40: [N/mmq] | G40: [N/mmq] | H40: [kN/mc] | I40: [-] | J40: [-] | K40: [-]
B41: CONT | D41: fc,k | E41: Rc,k | F41: ft,k | G41: Ecls | I41: h1 | J41: h2 | K41: hE | O41: CONT | Q41: rete | R41: mm2/m | S41: Passo tondi | T41: Area tondo
B42: 1 | C42: C20/25 | D42: 20 | E42: 25 | F42: =0.7*(0.3*D42^(2/3)) -> 1.547293229 | G42: =22*(0.083*E42+0.8)^0.3*1000 -> 30200.49321 | H42: 25 | I42: - | J42: - | K42: - | O42: 1 | P42: 6 mm/10x10 | Q42: Æ6/10x10 | R42: =((100/10)*PI()*(0.6^2)/4)*100 -> 282.7433388 | S42: 100 | T42: =PI()*6^2/4 -> 28.27433388
B43: =B42+1 -> 2 | C43: C25/30 | D43: 25 | E43: 30 | F43: 1.795474744 | G43: 31447.16144 | H43: 25 | I43: - | J43: - | K43: - | O43: 2 | P43: 6 mm/15x15 | Q43: Æ6/15x15 | R43: =((100/15)*PI()*(0.6^2)/4)*100 -> 188.4955592 | S43: 150 | T43: =T42 -> 28.27433388
B44: =B43+1 -> 3 | C44: C28/35 | D44: 28 | E44: 35 | F44: 1.936383243 | G44: 32588.10782 | H44: 25 | I44: - | J44: - | K44: - | O44: 3 | P44: 6 mm/20x20 | Q44: Æ6/20x20 | R44: =(100/20)*PI()*(0.6^2)/4*100 -> 141.3716694 | S44: 200 | T44: =T43 -> 28.27433388
B45: 4 | C45: C30/37 | D45: 30 | E45: 37 | F45: 2.027527708 | G45: 33019.43458 | H45: 25 | I45: - | J45: - | K45: - | O45: 4 | P45: 8 mm/10x10 | Q45: Æ8/10x10 | R45: =(100/10)*PI()*(0.8^2)/4*100 -> 502.6548246 | S45: 100 | T45: =PI()*8^2/4 -> 50.26548246
B46: 5 | C46: C32/40 | D46: 32 | E46: 40 | F46: 2.116667364 | G46: 33642.77768 | H46: 25 | I46: - | J46: - | K46: - | O46: 5 | P46: 8 mm/15x15 | Q46: Æ8/15x15 | R46: =(100/15)*PI()*(0.8^2)/4*100 -> 335.1032164 | S46: 150 | T46: =T45 -> 50.26548246
B47: 6 | C47: C35/40 | D47: 35 | E47: 40 | F47: 2.246973709 | G47: 33642.77768 | H47: 25 | I47: - | J47: - | K47: - | O47: 6 | P47: 8 mm/20x20 | Q47: Æ8/20x20 | R47: =(100/20)*PI()*(0.8^2)/4*100 -> 251.3274123 | S47: 200 | T47: =T46 -> 50.26548246
B48: 7 | C48: Leca CLS 1400 - LC 20/22 | D48: 20 | E48: 22 | F48: =0.7*(I48*0.3*D48^(2/3)) -> 1.273000339 | G48: 15000 | H48: 15.5 | I48: =0.4+0.6*H48*100/2200 -> 0.8227272727 | J48: 1 | K48: =(H48*100/2200)^2 -> 0.4963842975 | O48: 2
B49: 8 | C49: Leca CLS 1600 - LC 31.5/35 | D49: 31.5 | E49: 35 | F49: =0.7*(I49*0.3*D49^(2/3)) -> 1.837501175 | G49: 20000 | H49: 17.5 | I49: =0.4+0.6*H49*100/2200 -> 0.8772727273 | J49: 1 | K49: =(H49*100/2200)^2 -> 0.6327479339
B50: 9 | C50: Leca CLS 1800 - LC 40.5/45 | D50: 40.5 | E50: 45 | F50: =0.7*(I50*0.3*D50^(2/3)) -> 2.307741485 | G50: 25000 | H50: 19.5 | I50: =0.4+0.6*H50*100/2200 -> 0.9318181818 | J50: 1 | K50: =(H50*100/2200)^2 -> 0.7856404959
B51: 2
D55: mm | E55: mm | F55: mm | G55: N/mm | H55: mm | I55: mm | J55: mm | K55: mm | L55: mm | M55: mm | N55: mm | O55: mm | P55: mm | Q55: Nmm | R55: mm | S55: N/mm2 | T55: kN
B56: CONT | D56: fi | E56: Ltot | F56: Lfilettata | G56: Kser | H56: Lsp | I56: toll | J56: P | K56: toll | L56: di | M56: toll | N56: Lm | O56: def | P56: Lef | Q56: Myk | R56: ds | S56: fax,k,90 | T56: ftens,k
B57: 1 | C57: T-CON 8.0x155 | D57: 8 | E57: 158.85 | F57: 100 | G57: 7700 | H57: 8.2 | I57: 2.1 | J57: 5.6 | K57: 0.56 | L57: 5.3 | M57: 0.26 | N57: =SUM($H$57:$K$57) -> 16.46 | O57: =1.1*$L$57 -> 5.83 | P57: 100 | Q57: 22600 | R57: 5.9 | S57: 10.7 | T57: 22.7
B58: 2 | C58: T-CON 8.0x205 | D58: 8 | E58: 208.85 | F58: 130 | G58: 9000 | H58: 8.2 | I58: 2.1 | J58: 5.6 | K58: 0.56 | L58: 5.3 | M58: 0.26 | N58: =SUM($H$57:$K$57) -> 16.46 | O58: =1.1*$L$57 -> 5.83 | P58: 100 | Q58: 22600 | R58: 5.9 | S58: 10.7 | T58: 22.7
B59: 2
C61: Densità legname per il tavolato
D62: [kg/mc] | E62: [kg/mc] | F62: [mm]
B63: CONT | D63: rg,k | E63: rm | F63: sp
B64: 1 | C64: Legno di Conifera C16 | D64: 550
B65: =B64+1 -> 2 | C65: Legno di Conifera C24 | D65: 550
B66: =B65+1 -> 3 | C66: Legno di Latifoglia D35 | D66: 550
B67: 4 | C67: Legno di Latifoglia D30 | D67: 550
B68: 5 | C68: Legno di Latifoglia D24 | D68: 550
B69: 6 | C69: Pannello OSB | D69: 550
B70: 7 | C70: Pannello fibrogesso A1 - sp. 10 mm | D70: 1150 | F70: 10
B71: 8 | C71: Pannello fibrogesso A1 - sp. 12,5 mm | D71: 1200 | F71: 12.5
B72: 9 | C72: Pannello fibrogesso A1 - sp. 15 mm | D72: 1200 | F72: 15
B73: 10 | C73: Pannello fibrogesso A1 - sp. 18 mm | D73: 1166.666667 | F73: 18
B74: 11 | C74: Tavella in laterizio sp. 3,5 cm | F74: 35
B75: 12 | C75: Tavella in laterizio sp. 5 cm | F75: 50
B76: 13 | C76: Pianella in laterizio sp. 4,0 cm | D76: 1800 | F76: 40
B77: 14 | C77: Pianella in laterizio sp. 3,0 cm | D77: 1800 | F77: 30
B78: 15 | C78: Pianella in laterizio sp. 2,6 cm | D78: 1800 | F78: 26
B79: 16 | C79: Pianella in laterizio sp. 1,6 cm | D79: 1800 | F79: 16
B80: 2
C82: CONSTRUCT - TC
B83: CONT | C83: Denominazione | D83: dxL | E83: codice | F83: d gambo | G83: d nocciolo | H83: d filetto | I83: d testa | J83: L vite | K83: Lfiletto | L83: fuk(N/mm2) | M83: d rondella | N83: Rtens,k | O83: FAX,K90
B84: 1 | C84: =CONCATENATE($C$82," - ",D84) -> CONSTRUCT - TC - 8x120 | D84: 8x120 | E84: 01408120 | F84: 5.9 | G84: 5.2 | H84: 8 | I84: 10.2 | J84: 120 | K84: 110 | L84: 1000 | M84: 0 | N84: 24.1 | O84: 13.1
B85: =B84+1 -> 2 | C85: =CONCATENATE($C$82," - ",D85) -> CONSTRUCT - TC - 8x140 | D85: 8x140 | E85: 01408140 | F85: 5.9 | G85: 5.2 | H85: 8 | I85: 10.2 | J85: 140 | K85: 130 | L85: 1000 | M85: 0 | N85: 24.1 | O85: 13.1
B86: =B85+1 -> 3 | C86: CONSTRUCT - TC - 8x160 | D86: 8x160 | E86: 01408160 | F86: 5.9 | G86: 5.2 | H86: 8 | I86: 10.2 | J86: 160 | K86: 150 | L86: 1000 | M86: 0 | N86: 24.1 | O86: 13.1
B87: 4 | C87: CONSTRUCT - TC - 8x180 | D87: 8x180 | E87: 01408180 | F87: 5.9 | G87: 5.2 | H87: 8 | I87: 10.2 | J87: 180 | K87: 170 | L87: 1000 | M87: 0 | N87: 24.1 | O87: 13.1
B88: 5 | C88: CONSTRUCT - TC - 8x200 | D88: 8x200 | E88: 01408200 | F88: 5.9 | G88: 5.2 | H88: 8 | I88: 10.2 | J88: 200 | K88: 190 | L88: 1000 | M88: 0 | N88: 24.1 | O88: 13.1
B89: 6 | C89: CONSTRUCT - TC - 8x220 | D89: 8x220 | E89: 01408220 | F89: 5.9 | G89: 5.2 | H89: 8 | I89: 10.2 | J89: 220 | K89: 210 | L89: 1000 | M89: 0 | N89: 24.1 | O89: 13.1
B90: 7 | C90: CONSTRUCT - TC - 8x240 | D90: 8x240 | E90: 01408240 | F90: 5.9 | G90: 5.2 | H90: 8 | I90: 10.2 | J90: 240 | K90: 230 | L90: 1000 | M90: 0 | N90: 24.1 | O90: 13.1
B91: 8 | C91: CONSTRUCT - TC - 8x260 | D91: 8x260 | E91: 01408260 | F91: 5.9 | G91: 5.2 | H91: 8 | I91: 10.2 | J91: 260 | K91: 250 | L91: 1000 | M91: 0 | N91: 24.1 | O91: 13.1
B92: 9 | C92: CONSTRUCT - TC - 8x280 | D92: 8x280 | E92: 01408280 | F92: 5.9 | G92: 5.2 | H92: 8 | I92: 10.2 | J92: 280 | K92: 270 | L92: 1000 | M92: 0 | N92: 24.1 | O92: 13.1
B93: 10 | C93: CONSTRUCT - TC - 8x300 | D93: 8x300 | E93: 01408300 | F93: 5.9 | G93: 5.2 | H93: 8 | I93: 10.2 | J93: 300 | K93: 290 | L93: 1000 | M93: 0 | N93: 24.1 | O93: 13.1
B94: 11 | C94: CONSTRUCT - TC - 8x350 | D94: 8x350 | E94: 01408350 | F94: 5.9 | G94: 5.2 | H94: 8 | I94: 10.2 | J94: 350 | K94: 340 | L94: 1000 | M94: 0 | N94: 24.1 | O94: 13.1
B95: 12 | C95: CONSTRUCT - TC - 8x400 | D95: 8x400 | E95: 01408400 | F95: 5.9 | G95: 5.2 | H95: 8 | I95: 10.2 | J95: 400 | K95: 390 | L95: 1000 | M95: 0 | N95: 24.1 | O95: 13.1
B96: 13 | C96: CONSTRUCT - TC - 8x450 | D96: 8x450 | E96: 01408450 | F96: 5.9 | G96: 5.2 | H96: 8 | I96: 10.2 | J96: 450 | K96: 428 | L96: 1000 | M96: 0 | N96: 24.1 | O96: 13.1
B97: 14 | C97: CONSTRUCT - TC - 8x500 | D97: 8x500 | E97: 01408500 | F97: 5.9 | G97: 5.2 | H97: 8 | I97: 10.2 | J97: 500 | K97: 478 | L97: 1000 | M97: 0 | N97: 24.1 | O97: 13.1
B98: 15 | C98: CONSTRUCT - TC - 8x600 | D98: 8x600 | E98: 01408600 | F98: 5.9 | G98: 5.2 | H98: 8 | I98: 10.2 | J98: 600 | K98: 578 | L98: 1000 | M98: 0 | N98: 24.1 | O98: 13.1
B99: 16 | C99: CONSTRUCT - TC - 10x450 | D99: 10x450 | E99: 01410450 | F99: 7.1 | G99: 6.1 | H99: 10 | I99: 13.4 | J99: 450 | K99: 426 | L99: 1000 | M99: 0 | N99: 40 | O99: 12.5
B100: 17 | C100: CONSTRUCT - TC - 10x500 | D100: 10x500 | E100: 01410500 | F100: 7.1 | G100: 6.1 | H100: 10 | I100: 13.4 | J100: 500 | K100: 476 | L100: 1000 | M100: 0 | N100: 40 | O100: 12.5
B101: 18 | C101: CONSTRUCT - TC - 10x600 | D101: 10x600 | E101: 01410600 | F101: 7.1 | G101: 6.1 | H101: 10 | I101: 13.4 | J101: 600 | K101: 576 | L101: 1000 | M101: 0 | N101: 40 | O101: 12.5
B102: 19 | C102: CONSTRUCT - TC - 10x800 | D102: 10x800 | E102: 01410800 | F102: 7.1 | G102: 6.1 | H102: 10 | I102: 13.4 | J102: 800 | K102: 776 | L102: 1000 | M102: 0 | N102: 40 | O102: 12.5
B103: 20 | C103: CONSTRUCT - TC - 10x1000 | D103: 10x1000 | E103: 01411000 | F103: 7.1 | G103: 6.1 | H103: 10 | I103: 13.4 | J103: 1000 | K103: 976 | L103: 1000 | M103: 0 | N103: 40 | O103: 12.5
B104: 13
C106: CONSTRUCT - TS
B107: CONT | C107: Denominazione | D107: dxL | E107: codice | F107: d gambo | G107: d nocciolo | H107: d filetto | I107: d testa | J107: L vite | K107: Lfiletto | L107: fuk(N/mm2) | M107: d rondella | N107: Rtens,k | O107: FAX,K90
B108: 1 | C108: =CONCATENATE($C$106," - ",D108) -> CONSTRUCT - TS - 8x160 | D108: 8x160 | E108: 01580160 | F108: 5.9 | G108: 5.2 | H108: 8 | I108: 15 | J108: 160 | K108: 150 | L108: 950 | M108: 0 | N108: 24.1 | O108: 13.1
B109: =B108+1 -> 2 | C109: =CONCATENATE($C$106," - ",D109) -> CONSTRUCT - TS - 8x200 | D109: 8x200 | E109: 01580200 | F109: 5.9 | G109: 5.2 | H109: 8 | I109: 15 | J109: 200 | K109: 190 | L109: 950 | M109: 0 | N109: 24.1 | O109: 13.1
B110: =B109+1 -> 3 | C110: CONSTRUCT - TS - 8x240 | D110: 8x240 | E110: 01580240 | F110: 5.9 | G110: 5.2 | H110: 8 | I110: 15 | J110: 240 | K110: 230 | L110: 950 | M110: 0 | N110: 24.1 | O110: 13.1
B111: 4 | C111: CONSTRUCT - TS - 8x280 | D111: 8x280 | E111: 01580280 | F111: 5.9 | G111: 5.2 | H111: 8 | I111: 15 | J111: 280 | K111: 270 | L111: 950 | M111: 0 | N111: 24.1 | O111: 13.1
B112: 5 | C112: CONSTRUCT - TS - 8x300 | D112: 8x300 | E112: 01580300 | F112: 5.9 | G112: 5.2 | H112: 8 | I112: 15 | J112: 300 | K112: 290 | L112: 950 | M112: 0 | N112: 24.1 | O112: 13.1
B113: 6 | C113: CONSTRUCT - TS - 8x350 | D113: 8x350 | E113: 01580350 | F113: 5.9 | G113: 5.2 | H113: 8 | I113: 15 | J113: 350 | K113: 340 | L113: 950 | M113: 0 | N113: 24.1 | O113: 13.1
B114: 7 | C114: CONSTRUCT - TS - 8x400 | D114: 8x400 | E114: 01580400 | F114: 5.9 | G114: 5.2 | H114: 8 | I114: 15 | J114: 400 | K114: 390 | L114: 950 | M114: 0 | N114: 24.1 | O114: 13.1
B115: 8 | C115: CONSTRUCT - TS - 8x450 | D115: 8x450 | E115: 01580450 | F115: 5.9 | G115: 5.2 | H115: 8 | I115: 15 | J115: 450 | K115: 428 | L115: 950 | M115: 0 | N115: 24.1 | O115: 13.1
B116: 9 | C116: CONSTRUCT - TS - 8x500 | D116: 8x500 | E116: 01580500 | F116: 5.9 | G116: 5.2 | H116: 8 | I116: 15 | J116: 500 | K116: 478 | L116: 950 | M116: 0 | N116: 24.1 | O116: 13.1
B117: 10 | C117: CONSTRUCT - TS - 10x160 | D117: 10x160 | E117: 01510160 | F117: 7.1 | G117: 6.1 | H117: 10 | I117: 18.5 | J117: 160 | K117: 148 | L117: 950 | M117: 0 | N117: 40 | O117: 12.5
B118: 11 | C118: CONSTRUCT - TS - 10x200 | D118: 10x200 | E118: 01510200 | F118: 7.1 | G118: 6.1 | H118: 10 | I118: 18.5 | J118: 200 | K118: 188 | L118: 950 | M118: 0 | N118: 40 | O118: 12.5
B119: 12 | C119: CONSTRUCT - TS - 10x240 | D119: 10x240 | E119: 01510240 | F119: 7.1 | G119: 6.1 | H119: 10 | I119: 18.5 | J119: 240 | K119: 228 | L119: 950 | M119: 0 | N119: 40 | O119: 12.5
B120: 13 | C120: CONSTRUCT - TS - 10x300 | D120: 10x300 | E120: 01510300 | F120: 7.1 | G120: 6.1 | H120: 10 | I120: 18.5 | J120: 300 | K120: 288 | L120: 950 | M120: 0 | N120: 40 | O120: 12.5
B121: 14 | C121: CONSTRUCT - TS - 10x350 | D121: 10x350 | E121: 01510350 | F121: 7.1 | G121: 6.1 | H121: 10 | I121: 18.5 | J121: 350 | K121: 338 | L121: 950 | M121: 0 | N121: 40 | O121: 12.5
B122: 15 | C122: CONSTRUCT - TS - 10x400 | D122: 10x400 | E122: 01510400 | F122: 7.1 | G122: 6.1 | H122: 10 | I122: 18.5 | J122: 400 | K122: 388 | L122: 950 | M122: 0 | N122: 40 | O122: 12.5
B123: 16 | C123: CONSTRUCT - TS - 10x450 | D123: 10x450 | E123: 01510450 | F123: 7.1 | G123: 6.1 | H123: 10 | I123: 18.5 | J123: 450 | K123: 426 | L123: 950 | M123: 0 | N123: 40 | O123: 12.5
B124: 17 | C124: CONSTRUCT - TS - 10x500 | D124: 10x500 | E124: 01510500 | F124: 7.1 | G124: 6.1 | H124: 10 | I124: 18.5 | J124: 500 | K124: 476 | L124: 950 | M124: 0 | N124: 40 | O124: 12.5
B125: 18 | C125: CONSTRUCT - TS - 10x600 | D125: 10x600 | E125: 01510600 | F125: 7.1 | G125: 6.1 | H125: 10 | I125: 18.5 | J125: 600 | K125: 576 | L125: 950 | M125: 0 | N125: 40 | O125: 12.5
B126: 19 | C126: CONSTRUCT - TS - 12x400 | D126: 12x400 | E126: 01510400 | F126: 8.2 | G126: 6.8 | H126: 12 | I126: 21 | J126: 400 | K126: 380 | L126: 950 | M126: 0 | N126: 46.5 | O126: 11.2
B127: 20 | C127: CONSTRUCT - TS - 12x500 | D127: 12x500 | E127: 01510500 | F127: 8.2 | G127: 6.8 | H127: 12 | I127: 21 | J127: 500 | K127: 480 | L127: 950 | M127: 0 | N127: 46.5 | O127: 11.2
B128: 21 | C128: CONSTRUCT - TS - 12x600 | D128: 12x600 | E128: 01510600 | F128: 8.2 | G128: 6.8 | H128: 12 | I128: 21 | J128: 600 | K128: 580 | L128: 950 | M128: 0 | N128: 46.5 | O128: 11.2
B129: 7
B132: CONT
B133: 1 | C133: Vite a testa cilindrica
B134: =B133+1 -> 2 | C134: Vite a testa svasata
B135: 2

Sheet Viti (hidden)
J2: Construct TC
J3: Construct TS | S3: INDICE 1 | T3: INDICE 2
B4: CONT2 | C4: Gruppo | D4: Denominazione | E4: dxL | F4: codice | G4: d gambo | H4: d nocciolo | I4: d filetto | J4: d testa | K4: L vite | L4: Lfiletto | M4: fuk(N/mm2) | N4: d rondella | O4: Rtens,k | P4: FAX,K90 | S4: 1 | T4: 5 | W4: CONT
B5: =IF($S$4=1,W5,0) -> 1 | C5: Vite Testa Cilindrica | D5: =CONCATENATE($J$2," - ",E5) -> Construct TC - 8x120 | E5: 8x120 | F5: 01408120 | G5: 5.9 | H5: 5.2 | I5: 8 | J5: 10.2 | K5: 120 | L5: 110 | M5: 1000 | N5: 0 | O5: 24.1 | P5: 13.1 | S5: =+INDEX(V5:V6,S4) -> Vite Testa Cilindrica | T5: =+INDEX(Y5:Y45,T4) -> Construct TC - 8x200 | V5: Vite Testa Cilindrica | W5: 1 | X5: =IF(AND($S$4=2,'CONNESSIONI INCLINATE'!$Q$15=1),"#N/D",+nlookup($C$5:$D$45,$S$5,W5,0,1)) -> Construct TC - 8x120 | Y5: =IF(X5="#N/D","",+IF(ISERROR(X5),"",X5)) -> Construct TC - 8x120
B6: =IF($S$4=1,W6,0) -> 2 | C6: Vite Testa Cilindrica | D6: =CONCATENATE($J$2," - ",E6) -> Construct TC - 8x140 | E6: 8x140 | F6: 01408140 | G6: 5.9 | H6: 5.2 | I6: 8 | J6: 10.2 | K6: 140 | L6: 130 | M6: 1000 | N6: 0 | O6: 24.1 | P6: 13.1 | V6: Vite Testa Svasata | W6: =W5+1 -> 2 | X6: =IF(AND($S$4=2,'CONNESSIONI INCLINATE'!$Q$15=1),"#N/D",+nlookup($C$5:$D$45,$S$5,W6,0,1)) -> Construct TC - 8x140 | Y6: =IF(X6="#N/D","",+IF(ISERROR(X6),"",X6)) -> Construct TC - 8x140
B7: 3 | C7: Vite Testa Cilindrica | D7: Construct TC - 8x160 | E7: 8x160 | F7: 01408160 | G7: 5.9 | H7: 5.2 | I7: 8 | J7: 10.2 | K7: 160 | L7: 150 | M7: 1000 | N7: 0 | O7: 24.1 | P7: 13.1 | W7: =W6+1 -> 3 | X7: =IF(AND($S$4=2,'CONNESSIONI INCLINATE'!$Q$15=1),"#N/D",+nlookup($C$5:$D$45,$S$5,W7,0,1)) -> Construct TC - 8x160 | Y7: Construct TC - 8x160
B8: 4 | C8: Vite Testa Cilindrica | D8: Construct TC - 8x180 | E8: 8x180 | F8: 01408180 | G8: 5.9 | H8: 5.2 | I8: 8 | J8: 10.2 | K8: 180 | L8: 170 | M8: 1000 | N8: 0 | O8: 24.1 | P8: 13.1 | W8: 4 | X8: =IF(AND($S$4=2,'CONNESSIONI INCLINATE'!$Q$15=1),"#N/D",+nlookup($C$5:$D$45,$S$5,W8,0,1)) -> Construct TC - 8x180 | Y8: Construct TC - 8x180
B9: 5 | C9: Vite Testa Cilindrica | D9: Construct TC - 8x200 | E9: 8x200 | F9: 01408200 | G9: 5.9 | H9: 5.2 | I9: 8 | J9: 10.2 | K9: 200 | L9: 190 | M9: 1000 | N9: 0 | O9: 24.1 | P9: 13.1 | W9: 5 | X9: =IF(AND($S$4=2,'CONNESSIONI INCLINATE'!$Q$15=1),"#N/D",+nlookup($C$5:$D$45,$S$5,W9,0,1)) -> Construct TC - 8x200 | Y9: Construct TC - 8x200
B10: 6 | C10: Vite Testa Cilindrica | D10: Construct TC - 8x220 | E10: 8x220 | F10: 01408220 | G10: 5.9 | H10: 5.2 | I10: 8 | J10: 10.2 | K10: 220 | L10: 210 | M10: 1000 | N10: 0 | O10: 24.1 | P10: 13.1 | W10: 6 | X10: =IF(AND($S$4=2,'CONNESSIONI INCLINATE'!$Q$15=1),"#N/D",+nlookup($C$5:$D$45,$S$5,W10,0,1)) -> Construct TC - 8x220 | Y10: Construct TC - 8x220
B11: 7 | C11: Vite Testa Cilindrica | D11: Construct TC - 8x240 | E11: 8x240 | F11: 01408240 | G11: 5.9 | H11: 5.2 | I11: 8 | J11: 10.2 | K11: 240 | L11: 230 | M11: 1000 | N11: 0 | O11: 24.1 | P11: 13.1 | W11: 7 | X11: =IF(AND($S$4=2,'CONNESSIONI INCLINATE'!$Q$15=1),"#N/D",+nlookup($C$5:$D$45,$S$5,W11,0,1)) -> Construct TC - 8x240 | Y11: Construct TC - 8x240
B12: 8 | C12: Vite Testa Cilindrica | D12: Construct TC - 8x260 | E12: 8x260 | F12: 01408260 | G12: 5.9 | H12: 5.2 | I12: 8 | J12: 10.2 | K12: 260 | L12: 250 | M12: 1000 | N12: 0 | O12: 24.1 | P12: 13.1 | W12: 8 | X12: =IF(AND($S$4=2,'CONNESSIONI INCLINATE'!$Q$15=1),"#N/D",+nlookup($C$5:$D$45,$S$5,W12,0,1)) -> Construct TC - 8x260 | Y12: Construct TC - 8x260
B13: 9 | C13: Vite Testa Cilindrica | D13: Construct TC - 8x280 | E13: 8x280 | F13: 01408280 | G13: 5.9 | H13: 5.2 | I13: 8 | J13: 10.2 | K13: 280 | L13: 270 | M13: 1000 | N13: 0 | O13: 24.1 | P13: 13.1 | W13: 9 | X13: =IF(AND($S$4=2,'CONNESSIONI INCLINATE'!$Q$15=1),"#N/D",+nlookup($C$5:$D$45,$S$5,W13,0,1)) -> Construct TC - 8x280 | Y13: Construct TC - 8x280
B14: 10 | C14: Vite Testa Cilindrica | D14: Construct TC - 8x300 | E14: 8x300 | F14: 01408300 | G14: 5.9 | H14: 5.2 | I14: 8 | J14: 10.2 | K14: 300 | L14: 290 | M14: 1000 | N14: 0 | O14: 24.1 | P14: 13.1 | W14: 10 | X14: =IF(AND($S$4=2,'CONNESSIONI INCLINATE'!$Q$15=1),"#N/D",+nlookup($C$5:$D$45,$S$5,W14,0,1)) -> Construct TC - 8x300 | Y14: Construct TC - 8x300
B15: 11 | C15: Vite Testa Cilindrica | D15: Construct TC - 8x350 | E15: 8x350 | F15: 01408350 | G15: 5.9 | H15: 5.2 | I15: 8 | J15: 10.2 | K15: 350 | L15: 340 | M15: 1000 | N15: 0 | O15: 24.1 | P15: 13.1 | W15: 11 | X15: =IF(AND($S$4=2,'CONNESSIONI INCLINATE'!$Q$15=1),"#N/D",+nlookup($C$5:$D$45,$S$5,W15,0,1)) -> Construct TC - 8x350 | Y15: Construct TC - 8x350
B16: 12 | C16: Vite Testa Cilindrica | D16: Construct TC - 8x400 | E16: 8x400 | F16: 01408400 | G16: 5.9 | H16: 5.2 | I16: 8 | J16: 10.2 | K16: 400 | L16: 390 | M16: 1000 | N16: 0 | O16: 24.1 | P16: 13.1 | W16: 12 | X16: =IF(AND($S$4=2,'CONNESSIONI INCLINATE'!$Q$15=1),"#N/D",+nlookup($C$5:$D$45,$S$5,W16,0,1)) -> Construct TC - 8x400 | Y16: Construct TC - 8x400
B17: 13 | C17: Vite Testa Cilindrica | D17: Construct TC - 8x450 | E17: 8x450 | F17: 01408450 | G17: 5.9 | H17: 5.2 | I17: 8 | J17: 10.2 | K17: 450 | L17: 428 | M17: 1000 | N17: 0 | O17: 24.1 | P17: 13.1 | W17: 13 | X17: =IF(AND($S$4=2,'CONNESSIONI INCLINATE'!$Q$15=1),"#N/D",+nlookup($C$5:$D$45,$S$5,W17,0,1)) -> Construct TC - 8x450 | Y17: Construct TC - 8x450
B18: 14 | C18: Vite Testa Cilindrica | D18: Construct TC - 8x500 | E18: 8x500 | F18: 01408500 | G18: 5.9 | H18: 5.2 | I18: 8 | J18: 10.2 | K18: 500 | L18: 478 | M18: 1000 | N18: 0 | O18: 24.1 | P18: 13.1 | W18: 14 | X18: =IF(AND($S$4=2,'CONNESSIONI INCLINATE'!$Q$15=1),"#N/D",+nlookup($C$5:$D$45,$S$5,W18,0,1)) -> Construct TC - 8x500 | Y18: Construct TC - 8x500
B19: 15 | C19: Vite Testa Cilindrica | D19: Construct TC - 8x600 | E19: 8x600 | F19: 01408600 | G19: 5.9 | H19: 5.2 | I19: 8 | J19: 10.2 | K19: 600 | L19: 578 | M19: 1000 | N19: 0 | O19: 24.1 | P19: 13.1 | W19: 15 | X19: =IF(AND($S$4=2,'CONNESSIONI INCLINATE'!$Q$15=1),"#N/D",+nlookup($C$5:$D$45,$S$5,W19,0,1)) -> Construct TC - 8x600 | Y19: Construct TC - 8x600
B20: 16 | C20: Vite Testa Cilindrica | D20: Construct TC - 10x450 | E20: 10x450 | F20: 01410450 | G20: 7.1 | H20: 6.1 | I20: 10 | J20: 13.4 | K20: 450 | L20: 426 | M20: 1000 | N20: 0 | O20: 40 | P20: 12.5 | W20: 16 | X20: =IF(AND($S$4=2,'CONNESSIONI INCLINATE'!$Q$15=1),"#N/D",+nlookup($C$5:$D$45,$S$5,W20,0,1)) -> Construct TC - 10x450 | Y20: Construct TC - 10x450
B21: 17 | C21: Vite Testa Cilindrica | D21: Construct TC - 10x500 | E21: 10x500 | F21: 01410500 | G21: 7.1 | H21: 6.1 | I21: 10 | J21: 13.4 | K21: 500 | L21: 476 | M21: 1000 | N21: 0 | O21: 40 | P21: 12.5 | W21: 17 | X21: =IF(AND($S$4=2,'CONNESSIONI INCLINATE'!$Q$15=1),"#N/D",+nlookup($C$5:$D$45,$S$5,W21,0,1)) -> Construct TC - 10x500 | Y21: Construct TC - 10x500
B22: 18 | C22: Vite Testa Cilindrica | D22: Construct TC - 10x600 | E22: 10x600 | F22: 01410600 | G22: 7.1 | H22: 6.1 | I22: 10 | J22: 13.4 | K22: 600 | L22: 576 | M22: 1000 | N22: 0 | O22: 40 | P22: 12.5 | W22: 18 | X22: =IF(AND($S$4=2,'CONNESSIONI INCLINATE'!$Q$15=1),"#N/D",+nlookup($C$5:$D$45,$S$5,W22,0,1)) -> Construct TC - 10x600 | Y22: Construct TC - 10x600
B23: 19 | C23: Vite Testa Cilindrica | D23: Construct TC - 10x800 | E23: 10x800 | F23: 01410800 | G23: 7.1 | H23: 6.1 | I23: 10 | J23: 13.4 | K23: 800 | L23: 776 | M23: 1000 | N23: 0 | O23: 40 | P23: 12.5 | W23: 19 | X23: =IF(AND($S$4=2,'CONNESSIONI INCLINATE'!$Q$15=1),"#N/D",+nlookup($C$5:$D$45,$S$5,W23,0,1)) -> Construct TC - 10x800 | Y23: Construct TC - 10x800
B24: 20 | C24: Vite Testa Cilindrica | D24: Construct TC - 10x1000 | E24: 10x1000 | F24: 01411000 | G24: 7.1 | H24: 6.1 | I24: 10 | J24: 13.4 | K24: 1000 | L24: 976 | M24: 1000 | N24: 0 | O24: 40 | P24: 12.5 | W24: 20 | X24: =IF(AND($S$4=2,'CONNESSIONI INCLINATE'!$Q$15=1),"#N/D",+nlookup($C$5:$D$45,$S$5,W24,0,1)) -> Construct TC - 10x1000 | Y24: Construct TC - 10x1000
B25: =IF($S$4=1,0,W5) -> 0 | C25: Vite Testa Svasata | D25: =CONCATENATE($J$3," - ",E25) -> Construct TS - 8x160 | E25: 8x160 | F25: 01580160 | G25: 5.9 | H25: 5.2 | I25: 8 | J25: 15 | K25: 160 | L25: 150 | M25: 1000 | N25: 0 | O25: 24.1 | P25: 13.1 | W25: 21 | X25: =IF(AND($S$4=2,'CONNESSIONI INCLINATE'!$Q$15=1),"#N/D",+nlookup($C$5:$D$45,$S$5,W25,0,1)) -> 
B26: =IF($S$4=1,0,W6) -> 0 | C26: Vite Testa Svasata | D26: =CONCATENATE($J$3," - ",E26) -> Construct TS - 8x200 | E26: 8x200 | F26: 01580200 | G26: 5.9 | H26: 5.2 | I26: 8 | J26: 15 | K26: 200 | L26: 190 | M26: 1000 | N26: 0 | O26: 24.1 | P26: 13.1 | W26: 22 | X26: =+nlookup($C$5:$D$45,$S$5,W26,0,1) ->  | Y26: =+IF(ISERROR(X26),"",X26) -> 
B27: 0 | C27: Vite Testa Svasata | D27: Construct TS - 8x240 | E27: 8x240 | F27: 01580240 | G27: 5.9 | H27: 5.2 | I27: 8 | J27: 15 | K27: 240 | L27: 230 | M27: 1000 | N27: 0 | O27: 24.1 | P27: 13.1 | W27: 23 | X27: =+nlookup($C$5:$D$45,$S$5,W27,0,1) -> 
B28: 0 | C28: Vite Testa Svasata | D28: Construct TS - 8x280 | E28: 8x280 | F28: 01580280 | G28: 5.9 | H28: 5.2 | I28: 8 | J28: 15 | K28: 280 | L28: 270 | M28: 1000 | N28: 0 | O28: 24.1 | P28: 13.1 | W28: 24
B29: 0 | C29: Vite Testa Svasata | D29: Construct TS - 8x300 | E29: 8x300 | F29: 01580300 | G29: 5.9 | H29: 5.2 | I29: 8 | J29: 15 | K29: 300 | L29: 290 | M29: 1000 | N29: 0 | O29: 24.1 | P29: 13.1 | W29: 25
B30: 0 | C30: Vite Testa Svasata | D30: Construct TS - 8x350 | E30: 8x350 | F30: 01580350 | G30: 5.9 | H30: 5.2 | I30: 8 | J30: 15 | K30: 350 | L30: 340 | M30: 1000 | N30: 0 | O30: 24.1 | P30: 13.1 | W30: 26
B31: 0 | C31: Vite Testa Svasata | D31: Construct TS - 8x400 | E31: 8x400 | F31: 01580400 | G31: 5.9 | H31: 5.2 | I31: 8 | J31: 15 | K31: 400 | L31: 390 | M31: 1000 | N31: 0 | O31: 24.1 | P31: 13.1 | W31: 27
B32: 0 | C32: Vite Testa Svasata | D32: Construct TS - 8x450 | E32: 8x450 | F32: 01580450 | G32: 5.9 | H32: 5.2 | I32: 8 | J32: 15 | K32: 450 | L32: 428 | M32: 1000 | N32: 0 | O32: 24.1 | P32: 13.1 | W32: 28
B33: 0 | C33: Vite Testa Svasata | D33: Construct TS - 8x500 | E33: 8x500 | F33: 01580500 | G33: 5.9 | H33: 5.2 | I33: 8 | J33: 15 | K33: 500 | L33: 478 | M33: 1000 | N33: 0 | O33: 24.1 | P33: 13.1 | W33: 29
B34: 0 | C34: Vite Testa Svasata | D34: Construct TS - 10x160 | E34: 10x160 | F34: 01510160 | G34: 7.1 | H34: 6.1 | I34: 10 | J34: 18.5 | K34: 160 | L34: 148 | M34: 1000 | N34: 0 | O34: 40 | P34: 12.5 | W34: 30
B35: 0 | C35: Vite Testa Svasata | D35: Construct TS - 10x200 | E35: 10x200 | F35: 01510200 | G35: 7.1 | H35: 6.1 | I35: 10 | J35: 18.5 | K35: 200 | L35: 188 | M35: 1000 | N35: 0 | O35: 40 | P35: 12.5 | W35: 31
B36: 0 | C36: Vite Testa Svasata | D36: Construct TS - 10x240 | E36: 10x240 | F36: 01510240 | G36: 7.1 | H36: 6.1 | I36: 10 | J36: 18.5 | K36: 240 | L36: 228 | M36: 1000 | N36: 0 | O36: 40 | P36: 12.5 | W36: 32
B37: 0 | C37: Vite Testa Svasata | D37: Construct TS - 10x300 | E37: 10x300 | F37: 01510300 | G37: 7.1 | H37: 6.1 | I37: 10 | J37: 18.5 | K37: 300 | L37: 288 | M37: 1000 | N37: 0 | O37: 40 | P37: 12.5 | W37: 33
B38: 0 | C38: Vite Testa Svasata | D38: Construct TS - 10x350 | E38: 10x350 | F38: 01510350 | G38: 7.1 | H38: 6.1 | I38: 10 | J38: 18.5 | K38: 350 | L38: 338 | M38: 1000 | N38: 0 | O38: 40 | P38: 12.5 | W38: 34
B39: 0 | C39: Vite Testa Svasata | D39: Construct TS - 10x400 | E39: 10x400 | F39: 01510400 | G39: 7.1 | H39: 6.1 | I39: 10 | J39: 18.5 | K39: 400 | L39: 388 | M39: 1000 | N39: 0 | O39: 40 | P39: 12.5 | W39: 35
B40: 0 | C40: Vite Testa Svasata | D40: Construct TS - 10x450 | E40: 10x450 | F40: 01510450 | G40: 7.1 | H40: 6.1 | I40: 10 | J40: 18.5 | K40: 450 | L40: 426 | M40: 1000 | N40: 0 | O40: 40 | P40: 12.5 | W40: 36
B41: 0 | C41: Vite Testa Svasata | D41: Construct TS - 10x500 | E41: 10x500 | F41: 01510500 | G41: 7.1 | H41: 6.1 | I41: 10 | J41: 18.5 | K41: 500 | L41: 476 | M41: 1000 | N41: 0 | O41: 40 | P41: 12.5 | W41: 37
B42: 0 | C42: Vite Testa Svasata | D42: Construct TS - 10x600 | E42: 10x600 | F42: 01510600 | G42: 7.1 | H42: 6.1 | I42: 10 | J42: 18.5 | K42: 600 | L42: 576 | M42: 1000 | N42: 0 | O42: 40 | P42: 12.5 | W42: 38
B43: 0 | C43: Vite Testa Svasata | D43: Construct TS - 12x400 | E43: 12x400 | F43: 01510400 | G43: 8.2 | H43: 6.8 | I43: 12 | J43: 21 | K43: 400 | L43: 380 | M43: 1000 | N43: 0 | O43: 46.5 | P43: 11.2 | W43: 39
B44: 0 | C44: Vite Testa Svasata | D44: Construct TS - 12x500 | E44: 12x500 | F44: 01510500 | G44: 8.2 | H44: 6.8 | I44: 12 | J44: 21 | K44: 500 | L44: 480 | M44: 1000 | N44: 0 | O44: 46.5 | P44: 11.2 | W44: 40
B45: 0 | C45: Vite Testa Svasata | D45: Construct TS - 12x600 | E45: 12x600 | F45: 01510600 | G45: 8.2 | H45: 6.8 | I45: 12 | J45: 21 | K45: 600 | L45: 580 | M45: 1000 | N45: 0 | O45: 46.5 | P45: 11.2 | W45: 41
B46: 0
D49: =IF(Viti!S4=1,VLOOKUP(Viti!T4,Viti!B5:P24,15),VLOOKUP(Viti!T4,Viti!B25:P45,15)) -> 13.1

Sheet Prescrizioni (hidden)
B1: Normative di riferimento
B2: CONT | D2: Lamellare | E2: Massicio | F2: Unioni
B3: 1 | C3: D.M. 14.01.2008 | D3: 1.45 | E3: 1.5 | F3: 1.5
B4: 2 | C4: UNI EN 1995-1-1:2014 | D4: 1.25 | E4: 1.3 | F4: 1.3
B5: 1
B8: LIMITI PER SOLAI DI COPERTURA | G8: (riferiti per luce L in pianta)
B9: limite freccia istantanea sui (soli) carichi variabili | G9: qk: | H9: u2,ist < L / | I9: 300
B10: limite freccia finale sui (soli) carichi variabili | G10: qk: | H10: u2,fin < L / | I10: 200
B11: limite freccia netta (finale) su tutti i carichi: | G11: gk e qk: | H11: unet,fin < L / | I11: 200
B14: LIMITI PER SOLAI di interpiano (consigliati) | G14: (riferiti per luce L in pianta)
B15: limite freccia istantanea sui (soli) carichi variabili | G15: qk: | H15: u2,ist < L / | I15: 400
B16: limite freccia finale sui (soli) carichi variabili | G16: qk: | H16: u2,fin < L / | I16: 500
B17: limite freccia netta (finale) su tutti i carichi: | G17: gk e qk: | H17: unet,fin < L / | I17: 500
B21: CONT | C21: Azione | D21: Q | E21: y0,j | F21: y1,j | G21: y2,j
B22: 1 | C22: Cat. A: Amb. ad uso residenziale | D22: 2 | E22: 0.7 | F22: 0.5 | G22: 0.3
B23: 2 | C23: Cat. B: Uffici | D23: 2 | E23: 0.7 | F23: 0.5 | G23: 0.3
B24: 3 | C24: Cat. C: Amb. suscettibili di affollamento | D24: 4 | E24: 0.7 | F24: 0.7 | G24: 0.6
B25: 4 | C25: Cat. D: Amb. ad uso commerciale | D25: 5 | E25: 0.7 | F25: 0.7 | G25: 0.6
B26: 5 | C26: Cat. E: Biblioteche, archivi, ... | D26: 6 | E26: 1 | F26: 0.9 | G26: 0.8
B27: 6 | C27: Neve (a quota < 1000 m) | D27: 1.2 | E27: 0.5 | F27: 0.2 | G27: 0
B28: 7 | C28: Neve (a quota > 1000 m) | D28: 1.2 | E28: 0.7 | F28: 0.5 | G28: 0.2
B29: 8 | C29: Coperture | D29: 0.5 | E29: 0 | F29: 0 | G29: 0
B30: 1
B34: Valori di "kdef" per i prodotti strutturali a base di legno (EN 1995-1-1/D.M.14.01.2008)
B37: Materiale | C37: rif. | D37: CONT | E37: Classe servizio | F37: kdef
B38: LM | C38: EN 14081-1 | D38: 1 | E38: 1 | F38: 0.6
B39: LL | D39: 2 | E39: 2 | F39: 0.8
D40: 3 | E40: 3 | F40: 2
C41: valore attuale | D41: 1 | E41: <-- classe serv.
B44: Valori di "kmod" per i prodotti strutturali a base di legno (EN 1995-1-1/D.M.14.01.2008)
B46: Materiale | C46: rif. | D46: CONT | E46: Classe servizio | F46: permanente | G46: Lunga | H46: Media | I46: Breve | J46: Istantaneo
B47: LM | C47: EN 14081-1 | D47: 1 | E47: 1 | F47: 0.6 | G47: 0.7 | H47: 0.8 | I47: 0.9 | J47: 1.1
B48: LL | D48: 2 | E48: 2 | F48: 0.6 | G48: 0.7 | H48: 0.8 | I48: 0.9 | J48: 1.1
D49: 3 | E49: 3 | F49: 0.5 | G49: 0.55 | H49: 0.65 | I49: 0.7 | J49: 0.9
C50: valore attuale | D50: =D41 -> 1 | E50: <-- classe serv.
D52: CONT
D53: 1 | E53: Permanente | F53: =VLOOKUP($D$50,$D$47:$J$49,3) -> 0.6
D54: 2 | E54: Lunga | F54: =VLOOKUP($D$50,$D$47:$J$49,4) -> 0.7
D55: 3 | E55: Media | F55: =VLOOKUP($D$50,$D$47:$J$49,5) -> 0.8
D56: 4 | E56: Breve | F56: =VLOOKUP($D$50,$D$47:$J$49,6) -> 0.9
D57: 5 | E57: Istantaneo | F57: =VLOOKUP($D$50,$D$47:$J$49,7) -> 1.1
D58: 3
C61: ANGOLI | F61: AMMORSAMENTO | J61: Valore minimo passo minimo | M61: 100 | N61: mm
B62: CONT | E62: CONT
B63: 1 | C63: 45 | E63: 1 | F63: 0
B64: 2 | C64: 90 | E64: 2 | F64: =F63+1 -> 1
B65: 1 | E65: =E64+1 -> 3 | F65: =F64+1 -> 2
E66: =E65+1 -> 4 | F66: 3
E67: 5 | F67: 4
E68: 6 | F68: 5
E69: 7 | F69: 6
E70: 8 | F70: 7
E71: 9 | F71: 8
E72: 10 | F72: 9
E73: 11 | F73: 10
E74: 12 | F74: =IF(B65=2,"-",11) -> 11
E75: 13 | F75: =IF(B65=2,"-",12) -> 12
E76: 14 | F76: =IF(B65=2,"-",13) -> 13
E77: 15 | F77: =IF(B65=2,"-",14) -> 14
E78: 15
B81: Valori di pendenza, angoli e moltiplicatori di falda
C82: pendenza | D82: angolo | E82: angolo | F82: moltiplicatore
B83: CONT | C83: % | D83: ° | E83: rad | F83: - | L83: CONT | M83: TIPO G1
B84: 1 | C84: 0 | D84: =DEGREES(ATAN(C84/100)) -> 0 | E84: =RADIANS(D84) -> 0 | F84: =(1^2+(C84/100)^2)^0.5 -> 1 | L84: 1 | M84: AUTOMATICO
B85: =B84+1 -> 2 | C85: =B84 -> 1 | D85: 0.5729386977 | E85: =RADIANS(D85) -> 0.009999666687 | F85: 1.000049999 | L85: 2 | M85: VALORE UTENTE
B86: =B85+1 -> 3 | C86: 2 | D86: 1.145762838 | E86: 0.01999733397 | F86: 1.00019998 | L86: 1
B87: 4 | C87: 3 | D87: 1.718358002 | E87: 0.02999100486 | F87: 1.000449899
B88: 5 | C88: 4 | D88: 2.290610043 | E88: 0.03997868712 | F88: 1.00079968
B89: 6 | C89: 5 | D89: 2.862405226 | E89: 0.04995839572 | F89: 1.00124922
B90: 7 | C90: 6 | D90: 3.433630362 | E90: 0.05992815512 | F90: 1.001798383
B91: 8 | C91: 7 | D91: 4.004172941 | E91: 0.06988600163 | F91: 1.002447006
B92: 9 | C92: 8 | D92: 4.57392126 | E92: 0.07982998571 | F92: 1.003194896
B93: 10 | C93: 9 | D93: 5.142764558 | E93: 0.08975817419 | F93: 1.004041832
B94: 11 | C94: 10 | D94: 5.710593137 | E94: 0.09966865249 | F94: 1.004987562
B95: 12 | C95: 11 | D95: 6.27729849 | E95: 0.1095595268 | F95: 1.006031809
B96: 13 | C96: 12 | D96: 6.842773413 | E96: 0.119428926 | F96: 1.007174265
B97: 14 | C97: 13 | D97: 7.406912128 | E97: 0.129275004 | F97: 1.008414597
B98: 15 | C98: 14 | D98: 7.969610394 | E98: 0.1390959415 | F98: 1.009752445
B99: 16 | C99: 15 | D99: 8.53076561 | E99: 0.1488899476 | F99: 1.011187421
B100: 17 | C100: 16 | D100: 9.090276921 | E100: 0.1586552622 | F100: 1.012719112
B101: 18 | C101: 17 | D101: 9.648045316 | E101: 0.1683901571 | F101: 1.014347081
B102: 19 | C102: 18 | D102: 10.20397372 | E102: 0.1780929382 | F102: 1.016070864
B103: 20 | C103: 19 | D103: 10.75796709 | E103: 0.1877619465 | F103: 1.017889974
B104: 21 | C104: 20 | D104: 11.30993247 | E104: 0.1973955598 | F104: 1.019803903
B105: 22 | C105: 21 | D105: 11.85977912 | E105: 0.2069921942 | F105: 1.021812116
B106: 23 | C106: 22 | D106: 12.40741853 | E106: 0.216550305 | F106: 1.023914059
B107: 24 | C107: 23 | D107: 12.95276451 | E107: 0.226068388 | F107: 1.026109156
B108: 25 | C108: 24 | D108: 13.49573328 | E108: 0.2355449807 | F108: 1.028396811
B109: 26 | C109: 25 | D109: 14.03624347 | E109: 0.2449786631 | F109: 1.030776406
B110: 27 | C110: 26 | D110: 14.5742162 | E110: 0.2543680586 | F110: 1.033247308
B111: 28 | C111: 27 | D111: 15.10957512 | E111: 0.2637118345 | F111: 1.035808863
B112: 29 | C112: 28 | D112: 15.64224646 | E112: 0.2730087031 | F112: 1.038460399
B113: 30 | C113: 29 | D113: 16.17215902 | E113: 0.282257422 | F113: 1.041201229
B114: 31 | C114: 30 | D114: =DEGREES(ATAN(C114/100)) -> 16.69924423 | E114: 0.2914567945 | F114: 1.044030651
B115: 32 | C115: 31 | D115: =DEGREES(ATAN(C115/100)) -> 17.22343619 | E115: 0.30060567 | F115: 1.046947945
B116: 33 | C116: 32 | D116: 17.74467163 | E116: 0.3097029445 | F116: 1.04995238
B117: 34 | C117: 33 | D117: 18.26288994 | E117: 0.3187475604 | F117: 1.053043209
B118: 35 | C118: 34 | D118: 18.77803322 | E118: 0.3277385068 | F118: 1.056219674
B119: 36 | C119: 35 | D119: 19.29004622 | E119: 0.3366748194 | F119: 1.059481005
B120: 37 | C120: 36 | D120: 19.79887635 | E120: 0.3455555806 | F120: 1.06282642
B121: 38 | C121: 37 | D121: 20.30447371 | E121: 0.3543799191 | F121: 1.066255129
B122: 39 | C122: 38 | D122: 20.80679101 | E122: 0.3631470099 | F122: 1.06976633
B123: 40 | C123: 39 | D123: 21.30578362 | E123: 0.3718560738 | F123: 1.073359213
B124: 41 | C124: 40 | D124: 21.80140949 | E124: 0.3805063771 | F124: 1.077032961
B125: 42 | C125: 41 | D125: 22.29362916 | E125: 0.3890972311 | F125: 1.08078675
B126: 43 | C126: 42 | D126: 22.78240573 | E126: 0.3976279915 | F126: 1.084619749
B127: 44 | C127: 43 | D127: 23.26770481 | E127: 0.4060980583 | F127: 1.08853112
B128: 45 | C128: 44 | D128: 23.74949449 | E128: 0.4145068746 | F128: 1.092520023
B129: 46 | C129: 45 | D129: 24.22774532 | E129: 0.4228539261 | F129: 1.09658561
B130: 47 | C130: 46 | D130: 24.70243023 | E130: 0.4311387407 | F130: 1.100727032
B131: 48 | C131: 47 | D131: 25.17352452 | E131: 0.4393608873 | F131: 1.104943437
B132: 49 | C132: 48 | D132: 25.64100582 | E132: 0.4475199752 | F132: 1.10923397
B133: 50 | C133: 49 | D133: 26.10485401 | E133: 0.4556156532 | F133: 1.113597773
B134: 51 | C134: 50 | D134: 26.56505118 | E134: 0.463647609 | F134: 1.118033989
B135: 52 | C135: 51 | D135: 27.02158159 | E135: 0.4716155679 | F135: 1.122541759
B136: 53 | C136: 52 | D136: 27.47443163 | E136: 0.479519292 | F136: 1.127120224
B137: 54 | C137: 53 | D137: 27.92358972 | E137: 0.4873585795 | F137: 1.131768528
B138: 55 | C138: 54 | D138: 28.36904629 | E138: 0.4951332635 | F138: 1.136485812
B139: 56 | C139: 55 | D139: 28.81079374 | E139: 0.5028432109 | F139: 1.141271221
B140: 57 | C140: 56 | D140: 29.24882634 | E140: 0.5104883219 | F140: 1.146123903
B141: 58 | C141: 57 | D141: 29.68314018 | E141: 0.5180685285 | F141: 1.151043005
B142: 59 | C142: 58 | D142: 30.11373315 | E142: 0.5255837936 | F142: 1.156027681
B143: 60 | C143: 59 | D143: 30.54060485 | E143: 0.5330341102 | F143: 1.161077086
B144: 61 | C144: 60 | D144: 30.96375653 | E144: 0.5404195003 | F144: 1.166190379
B145: 62 | C145: 61 | D145: 31.38319106 | E145: 0.5477400137 | F145: 1.171366723
B146: 63 | C146: 62 | D146: 31.79891282 | E146: 0.5549957273 | F146: 1.176605286
B147: 64 | C147: 63 | D147: 32.21092772 | E147: 0.5621867439 | F147: 1.181905242
B148: 65 | C148: 64 | D148: 32.61924307 | E148: 0.5693131911 | F148: =(1^2+(C148/100)^2)^0.5 -> 1.187265766
B149: 66 | C149: =B148 -> 65 | D149: 33.02386756 | E149: =RADIANS(D149) -> 0.5763752206 | F149: 1.192686044
B150: =B149+1 -> 67 | C150: 66 | D150: 33.42481118 | E150: 0.583373007 | F150: 1.198165264
B151: 68 | C151: 67 | D151: 33.82208522 | E151: 0.5903067469 | F151: 1.203702621
B152: 69 | C152: 68 | D152: 34.21570213 | E152: 0.5971766581 | F152: 1.209297317
B153: 70 | C153: 69 | D153: 34.60567555 | E153: 0.6039829783 | F153: 1.214948559
B154: 71 | C154: 70 | D154: 34.9920202 | E154: 0.6107259644 | F154: 1.220655562
B155: 72 | C155: 71 | D155: 35.37475184 | E155: 0.6174058918 | F155: 1.226417547
B156: 73 | C156: 72 | D156: 35.75388725 | E156: 0.624023053 | F156: 1.232233744
B157: 74 | C157: 73 | D157: 36.12944414 | E157: 0.6305777572 | F157: 1.238103388
B158: 75 | C158: 74 | D158: 36.50144112 | E158: 0.6370703293 | F158: 1.244025723
B159: 76 | C159: 75 | D159: 36.86989765 | E159: 0.6435011088 | F159: 1.25
B160: 77 | C160: 76 | D160: 37.23483398 | E160: 0.6498704494 | F160: 1.256025477
B161: 78 | C161: 77 | D161: 37.59627115 | E161: 0.656178718 | F161: 1.262101422
B162: 79 | C162: 78 | D162: 37.95423088 | E162: 0.6624262938 | F162: 1.268227109
B163: 80 | C163: 79 | D163: 38.30873557 | E163: 0.6686135679 | F163: 1.27440182
B164: 81 | C164: 80 | D164: 38.65980825 | E164: 0.6747409422 | F164: 1.280624847
B165: 82 | C165: 81 | D165: 39.00747255 | E165: 0.6808088289 | F165: 1.286895489
B166: 83 | C166: 82 | D166: 39.35175263 | E166: 0.6868176498 | F166: 1.293213053
B167: 84 | C167: 83 | D167: 39.69267315 | E167: 0.6927678354 | F167: 1.299576854
B168: 85 | C168: 84 | D168: 40.03025927 | E168: 0.6986598247 | F168: 1.305986217
B169: 86 | C169: 85 | D169: 40.36453657 | E169: 0.7044940642 | F169: 1.312440475
B170: 87 | C170: 86 | D170: 40.69553104 | E170: 0.7102710075 | F170: 1.318938968
B171: 88 | C171: 87 | D171: 41.02326902 | E171: 0.7159911144 | F171: 1.325481045
B172: 89 | C172: 88 | D172: 41.34777722 | E172: 0.7216548509 | F172: 1.332066064
B173: 90 | C173: 89 | D173: 41.66908262 | E173: 0.727262688 | F173: 1.338693393
B174: 91 | C174: 90 | D174: 41.9872125 | E174: 0.7328151018 | F174: 1.345362405
B175: 92 | C175: 91 | D175: 42.30219437 | E175: 0.7383125725 | F175: 1.352072483
B176: 93 | C176: 92 | D176: 42.61405597 | E176: 0.7437555843 | F176: 1.35882302
B177: 94 | C177: 93 | D177: 42.92282523 | E177: 0.7491446246 | F177: 1.365613415
B178: 95 | C178: 94 | D178: 43.22853026 | E178: 0.7544801838 | F178: 1.372443077
B179: 96 | C179: 95 | D179: =DEGREES(ATAN(C179/100)) -> 43.53119929 | E179: 0.7597627549 | F179: 1.379311422
B180: 97 | C180: 96 | D180: 43.83086067 | E180: 0.7649928327 | F180: 1.386217876
B181: 98 | C181: 97 | D181: 44.12754288 | E181: 0.770170914 | F181: 1.393161871
B182: 99 | C182: 98 | D182: 44.42127443 | E182: 0.7752974968 | F182: 1.40014285
B183: 100 | C183: 99 | D183: 44.71208393 | E183: 0.7803730801 | F183: 1.407160261
B184: 101 | C184: 100 | D184: 45 | E184: 0.7853981634 | F184: 1.414213562
B185: 1
B190: Valori di "kn" per intagli
B193: Materiale | C193: rif. | D193: CONT | E193: kdef
B194: LM | C194: EN 14081-1 | D194: 1 | E194: 5
B195: LL | D195: 2 | E195: 6.5
B196: LVL | D196: 3 | E196: 4.5
C197: valore attuale | D197: =IF(Materiali!$B$33<=14,2,IF(AND(Materiali!$B$33>14,Materiali!$B$33<=28),1,3)) -> 2 | E197: <-- classe serv.

Sheet Viti2 (hidden)
J2: Construct TC
J3: Construct TS | S3: INDICE 1 | T3: INDICE 2
B4: CONT2 | C4: Gruppo | D4: Denominazione | E4: dxL | F4: codice | G4: d gambo | H4: d nocciolo | I4: d filetto | J4: d testa | K4: L vite | L4: Lfiletto | M4: fuk(N/mm2) | N4: d rondella | O4: Rtens,k | P4: FAX,K90 | S4: 2 | T4: 4 | W4: CONT
B5: =IF($S$4=1,W5,0) -> 0 | C5: Vite Testa Cilindrica | D5: =CONCATENATE($J$2," - ",E5) -> Construct TC - 8x120 | E5: 8x120 | F5: 01408120 | G5: 5.9 | H5: 5.2 | I5: 8 | J5: 10.2 | K5: 120 | L5: 110 | M5: 1000 | N5: 0 | O5: 24.1 | P5: 13.1 | S5: =+INDEX(V5:V6,S4) -> Vite Testa Svasata | T5: =+INDEX(Y5:Y45,T4) -> Construct TS - 8x280 | V5: Vite Testa Cilindrica | W5: 1 | X5: =IF(AND($S$4=2,'CONNESSIONI PIANE'!$Q$15=1),"#N/D",+nlookup($C$5:$D$45,$S$5,W5,0,1)) -> Construct TS - 8x160 | Y5: =IF(X5="#N/D","",+IF(ISERROR(X5),"",X5)) -> Construct TS - 8x160
B6: =IF($S$4=1,W6,0) -> 0 | C6: Vite Testa Cilindrica | D6: =CONCATENATE($J$2," - ",E6) -> Construct TC - 8x140 | E6: 8x140 | F6: 01408140 | G6: 5.9 | H6: 5.2 | I6: 8 | J6: 10.2 | K6: 140 | L6: 130 | M6: 1000 | N6: 0 | O6: 24.1 | P6: 13.1 | V6: Vite Testa Svasata | W6: =W5+1 -> 2 | X6: =IF(AND($S$4=2,'CONNESSIONI PIANE'!$Q$15=1),"#N/D",+nlookup($C$5:$D$45,$S$5,W6,0,1)) -> Construct TS - 8x200 | Y6: =IF(X6="#N/D","",+IF(ISERROR(X6),"",X6)) -> Construct TS - 8x200
B7: 0 | C7: Vite Testa Cilindrica | D7: Construct TC - 8x160 | E7: 8x160 | F7: 01408160 | G7: 5.9 | H7: 5.2 | I7: 8 | J7: 10.2 | K7: 160 | L7: 150 | M7: 1000 | N7: 0 | O7: 24.1 | P7: 13.1 | W7: =W6+1 -> 3 | X7: =IF(AND($S$4=2,'CONNESSIONI PIANE'!$Q$15=1),"#N/D",+nlookup($C$5:$D$45,$S$5,W7,0,1)) -> Construct TS - 8x240 | Y7: Construct TS - 8x240
B8: 0 | C8: Vite Testa Cilindrica | D8: Construct TC - 8x180 | E8: 8x180 | F8: 01408180 | G8: 5.9 | H8: 5.2 | I8: 8 | J8: 10.2 | K8: 180 | L8: 170 | M8: 1000 | N8: 0 | O8: 24.1 | P8: 13.1 | W8: 4 | X8: =IF(AND($S$4=2,'CONNESSIONI PIANE'!$Q$15=1),"#N/D",+nlookup($C$5:$D$45,$S$5,W8,0,1)) -> Construct TS - 8x280 | Y8: Construct TS - 8x280
B9: 0 | C9: Vite Testa Cilindrica | D9: Construct TC - 8x200 | E9: 8x200 | F9: 01408200 | G9: 5.9 | H9: 5.2 | I9: 8 | J9: 10.2 | K9: 200 | L9: 190 | M9: 1000 | N9: 0 | O9: 24.1 | P9: 13.1 | W9: 5 | X9: =IF(AND($S$4=2,'CONNESSIONI PIANE'!$Q$15=1),"#N/D",+nlookup($C$5:$D$45,$S$5,W9,0,1)) -> Construct TS - 8x300 | Y9: Construct TS - 8x300
B10: 0 | C10: Vite Testa Cilindrica | D10: Construct TC - 8x220 | E10: 8x220 | F10: 01408220 | G10: 5.9 | H10: 5.2 | I10: 8 | J10: 10.2 | K10: 220 | L10: 210 | M10: 1000 | N10: 0 | O10: 24.1 | P10: 13.1 | W10: 6 | X10: =IF(AND($S$4=2,'CONNESSIONI PIANE'!$Q$15=1),"#N/D",+nlookup($C$5:$D$45,$S$5,W10,0,1)) -> Construct TS - 8x350 | Y10: Construct TS - 8x350
B11: 0 | C11: Vite Testa Cilindrica | D11: Construct TC - 8x240 | E11: 8x240 | F11: 01408240 | G11: 5.9 | H11: 5.2 | I11: 8 | J11: 10.2 | K11: 240 | L11: 230 | M11: 1000 | N11: 0 | O11: 24.1 | P11: 13.1 | W11: 7 | X11: =IF(AND($S$4=2,'CONNESSIONI PIANE'!$Q$15=1),"#N/D",+nlookup($C$5:$D$45,$S$5,W11,0,1)) -> Construct TS - 8x400 | Y11: Construct TS - 8x400
B12: 0 | C12: Vite Testa Cilindrica | D12: Construct TC - 8x260 | E12: 8x260 | F12: 01408260 | G12: 5.9 | H12: 5.2 | I12: 8 | J12: 10.2 | K12: 260 | L12: 250 | M12: 1000 | N12: 0 | O12: 24.1 | P12: 13.1 | W12: 8 | X12: =IF(AND($S$4=2,'CONNESSIONI PIANE'!$Q$15=1),"#N/D",+nlookup($C$5:$D$45,$S$5,W12,0,1)) -> Construct TS - 8x450 | Y12: Construct TS - 8x450
B13: 0 | C13: Vite Testa Cilindrica | D13: Construct TC - 8x280 | E13: 8x280 | F13: 01408280 | G13: 5.9 | H13: 5.2 | I13: 8 | J13: 10.2 | K13: 280 | L13: 270 | M13: 1000 | N13: 0 | O13: 24.1 | P13: 13.1 | W13: 9 | X13: =IF(AND($S$4=2,'CONNESSIONI PIANE'!$Q$15=1),"#N/D",+nlookup($C$5:$D$45,$S$5,W13,0,1)) -> Construct TS - 8x500 | Y13: Construct TS - 8x500
B14: 0 | C14: Vite Testa Cilindrica | D14: Construct TC - 8x300 | E14: 8x300 | F14: 01408300 | G14: 5.9 | H14: 5.2 | I14: 8 | J14: 10.2 | K14: 300 | L14: 290 | M14: 1000 | N14: 0 | O14: 24.1 | P14: 13.1 | W14: 10 | X14: =IF(AND($S$4=2,'CONNESSIONI PIANE'!$Q$15=1),"#N/D",+nlookup($C$5:$D$45,$S$5,W14,0,1)) -> Construct TS - 10x160 | Y14: Construct TS - 10x160
B15: 0 | C15: Vite Testa Cilindrica | D15: Construct TC - 8x350 | E15: 8x350 | F15: 01408350 | G15: 5.9 | H15: 5.2 | I15: 8 | J15: 10.2 | K15: 350 | L15: 340 | M15: 1000 | N15: 0 | O15: 24.1 | P15: 13.1 | W15: 11 | X15: =IF(AND($S$4=2,'CONNESSIONI PIANE'!$Q$15=1),"#N/D",+nlookup($C$5:$D$45,$S$5,W15,0,1)) -> Construct TS - 10x200 | Y15: Construct TS - 10x200
B16: 0 | C16: Vite Testa Cilindrica | D16: Construct TC - 8x400 | E16: 8x400 | F16: 01408400 | G16: 5.9 | H16: 5.2 | I16: 8 | J16: 10.2 | K16: 400 | L16: 390 | M16: 1000 | N16: 0 | O16: 24.1 | P16: 13.1 | W16: 12 | X16: =IF(AND($S$4=2,'CONNESSIONI PIANE'!$Q$15=1),"#N/D",+nlookup($C$5:$D$45,$S$5,W16,0,1)) -> Construct TS - 10x240 | Y16: Construct TS - 10x240
B17: 0 | C17: Vite Testa Cilindrica | D17: Construct TC - 8x450 | E17: 8x450 | F17: 01408450 | G17: 5.9 | H17: 5.2 | I17: 8 | J17: 10.2 | K17: 450 | L17: 428 | M17: 1000 | N17: 0 | O17: 24.1 | P17: 13.1 | W17: 13 | X17: =IF(AND($S$4=2,'CONNESSIONI PIANE'!$Q$15=1),"#N/D",+nlookup($C$5:$D$45,$S$5,W17,0,1)) -> Construct TS - 10x300 | Y17: Construct TS - 10x300
B18: 0 | C18: Vite Testa Cilindrica | D18: Construct TC - 8x500 | E18: 8x500 | F18: 01408500 | G18: 5.9 | H18: 5.2 | I18: 8 | J18: 10.2 | K18: 500 | L18: 478 | M18: 1000 | N18: 0 | O18: 24.1 | P18: 13.1 | W18: 14 | X18: =IF(AND($S$4=2,'CONNESSIONI PIANE'!$Q$15=1),"#N/D",+nlookup($C$5:$D$45,$S$5,W18,0,1)) -> Construct TS - 10x350 | Y18: Construct TS - 10x350
B19: 0 | C19: Vite Testa Cilindrica | D19: Construct TC - 8x600 | E19: 8x600 | F19: 01408600 | G19: 5.9 | H19: 5.2 | I19: 8 | J19: 10.2 | K19: 600 | L19: 578 | M19: 1000 | N19: 0 | O19: 24.1 | P19: 13.1 | W19: 15 | X19: =IF(AND($S$4=2,'CONNESSIONI PIANE'!$Q$15=1),"#N/D",+nlookup($C$5:$D$45,$S$5,W19,0,1)) -> Construct TS - 10x400 | Y19: Construct TS - 10x400
B20: 0 | C20: Vite Testa Cilindrica | D20: Construct TC - 10x450 | E20: 10x450 | F20: 01410450 | G20: 7.1 | H20: 6.1 | I20: 10 | J20: 13.4 | K20: 450 | L20: 426 | M20: 1000 | N20: 0 | O20: 40 | P20: 12.5 | W20: 16 | X20: =IF(AND($S$4=2,'CONNESSIONI PIANE'!$Q$15=1),"#N/D",+nlookup($C$5:$D$45,$S$5,W20,0,1)) -> Construct TS - 10x450 | Y20: Construct TS - 10x450
B21: 0 | C21: Vite Testa Cilindrica | D21: Construct TC - 10x500 | E21: 10x500 | F21: 01410500 | G21: 7.1 | H21: 6.1 | I21: 10 | J21: 13.4 | K21: 500 | L21: 476 | M21: 1000 | N21: 0 | O21: 40 | P21: 12.5 | W21: 17 | X21: =IF(AND($S$4=2,'CONNESSIONI PIANE'!$Q$15=1),"#N/D",+nlookup($C$5:$D$45,$S$5,W21,0,1)) -> Construct TS - 10x500 | Y21: Construct TS - 10x500
B22: 0 | C22: Vite Testa Cilindrica | D22: Construct TC - 10x600 | E22: 10x600 | F22: 01410600 | G22: 7.1 | H22: 6.1 | I22: 10 | J22: 13.4 | K22: 600 | L22: 576 | M22: 1000 | N22: 0 | O22: 40 | P22: 12.5 | W22: 18 | X22: =IF(AND($S$4=2,'CONNESSIONI PIANE'!$Q$15=1),"#N/D",+nlookup($C$5:$D$45,$S$5,W22,0,1)) -> Construct TS - 10x600 | Y22: Construct TS - 10x600
B23: 0 | C23: Vite Testa Cilindrica | D23: Construct TC - 10x800 | E23: 10x800 | F23: 01410800 | G23: 7.1 | H23: 6.1 | I23: 10 | J23: 13.4 | K23: 800 | L23: 776 | M23: 1000 | N23: 0 | O23: 40 | P23: 12.5 | W23: 19 | X23: =IF(AND($S$4=2,'CONNESSIONI PIANE'!$Q$15=1),"#N/D",+nlookup($C$5:$D$45,$S$5,W23,0,1)) -> Construct TS - 12x400 | Y23: Construct TS - 12x400
B24: 0 | C24: Vite Testa Cilindrica | D24: Construct TC - 10x1000 | E24: 10x1000 | F24: 01411000 | G24: 7.1 | H24: 6.1 | I24: 10 | J24: 13.4 | K24: 1000 | L24: 976 | M24: 1000 | N24: 0 | O24: 40 | P24: 12.5 | W24: 20 | X24: =IF(AND($S$4=2,'CONNESSIONI PIANE'!$Q$15=1),"#N/D",+nlookup($C$5:$D$45,$S$5,W24,0,1)) -> Construct TS - 12x500 | Y24: Construct TS - 12x500
B25: =IF($S$4=1,0,W5) -> 1 | C25: Vite Testa Svasata | D25: =CONCATENATE($J$3," - ",E25) -> Construct TS - 8x160 | E25: 8x160 | F25: 01580160 | G25: 5.9 | H25: 5.2 | I25: 8 | J25: 15 | K25: 160 | L25: 150 | M25: 1000 | N25: 0 | O25: 24.1 | P25: 13.1 | W25: 21 | X25: =IF(AND($S$4=2,'CONNESSIONI PIANE'!$Q$15=1),"#N/D",+nlookup($C$5:$D$45,$S$5,W25,0,1)) -> Construct TS - 12x600 | Y25: Construct TS - 12x600
B26: =IF($S$4=1,0,W6) -> 2 | C26: Vite Testa Svasata | D26: =CONCATENATE($J$3," - ",E26) -> Construct TS - 8x200 | E26: 8x200 | F26: 01580200 | G26: 5.9 | H26: 5.2 | I26: 8 | J26: 15 | K26: 200 | L26: 190 | M26: 1000 | N26: 0 | O26: 24.1 | P26: 13.1 | W26: 22 | X26: =+nlookup($C$5:$D$45,$S$5,W26,0,1) ->  | Y26: =+IF(ISERROR(X26),"",X26) -> 
B27: 3 | C27: Vite Testa Svasata | D27: Construct TS - 8x240 | E27: 8x240 | F27: 01580240 | G27: 5.9 | H27: 5.2 | I27: 8 | J27: 15 | K27: 240 | L27: 230 | M27: 1000 | N27: 0 | O27: 24.1 | P27: 13.1 | W27: 23 | X27: =+nlookup($C$5:$D$45,$S$5,W27,0,1) -> 
B28: 4 | C28: Vite Testa Svasata | D28: Construct TS - 8x280 | E28: 8x280 | F28: 01580280 | G28: 5.9 | H28: 5.2 | I28: 8 | J28: 15 | K28: 280 | L28: 270 | M28: 1000 | N28: 0 | O28: 24.1 | P28: 13.1 | W28: 24
B29: 5 | C29: Vite Testa Svasata | D29: Construct TS - 8x300 | E29: 8x300 | F29: 01580300 | G29: 5.9 | H29: 5.2 | I29: 8 | J29: 15 | K29: 300 | L29: 290 | M29: 1000 | N29: 0 | O29: 24.1 | P29: 13.1 | W29: 25
B30: 6 | C30: Vite Testa Svasata | D30: Construct TS - 8x350 | E30: 8x350 | F30: 01580350 | G30: 5.9 | H30: 5.2 | I30: 8 | J30: 15 | K30: 350 | L30: 340 | M30: 1000 | N30: 0 | O30: 24.1 | P30: 13.1 | W30: 26
B31: 7 | C31: Vite Testa Svasata | D31: Construct TS - 8x400 | E31: 8x400 | F31: 01580400 | G31: 5.9 | H31: 5.2 | I31: 8 | J31: 15 | K31: 400 | L31: 390 | M31: 1000 | N31: 0 | O31: 24.1 | P31: 13.1 | W31: 27
B32: 8 | C32: Vite Testa Svasata | D32: Construct TS - 8x450 | E32: 8x450 | F32: 01580450 | G32: 5.9 | H32: 5.2 | I32: 8 | J32: 15 | K32: 450 | L32: 428 | M32: 1000 | N32: 0 | O32: 24.1 | P32: 13.1 | W32: 28
B33: 9 | C33: Vite Testa Svasata | D33: Construct TS - 8x500 | E33: 8x500 | F33: 01580500 | G33: 5.9 | H33: 5.2 | I33: 8 | J33: 15 | K33: 500 | L33: 478 | M33: 1000 | N33: 0 | O33: 24.1 | P33: 13.1 | W33: 29
B34: 10 | C34: Vite Testa Svasata | D34: Construct TS - 10x160 | E34: 10x160 | F34: 01510160 | G34: 7.1 | H34: 6.1 | I34: 10 | J34: 18.5 | K34: 160 | L34: 148 | M34: 1000 | N34: 0 | O34: 40 | P34: 12.5 | W34: 30
B35: 11 | C35: Vite Testa Svasata | D35: Construct TS - 10x200 | E35: 10x200 | F35: 01510200 | G35: 7.1 | H35: 6.1 | I35: 10 | J35: 18.5 | K35: 200 | L35: 188 | M35: 1000 | N35: 0 | O35: 40 | P35: 12.5 | W35: 31
B36: 12 | C36: Vite Testa Svasata | D36: Construct TS - 10x240 | E36: 10x240 | F36: 01510240 | G36: 7.1 | H36: 6.1 | I36: 10 | J36: 18.5 | K36: 240 | L36: 228 | M36: 1000 | N36: 0 | O36: 40 | P36: 12.5 | W36: 32
B37: 13 | C37: Vite Testa Svasata | D37: Construct TS - 10x300 | E37: 10x300 | F37: 01510300 | G37: 7.1 | H37: 6.1 | I37: 10 | J37: 18.5 | K37: 300 | L37: 288 | M37: 1000 | N37: 0 | O37: 40 | P37: 12.5 | W37: 33
B38: 14 | C38: Vite Testa Svasata | D38: Construct TS - 10x350 | E38: 10x350 | F38: 01510350 | G38: 7.1 | H38: 6.1 | I38: 10 | J38: 18.5 | K38: 350 | L38: 338 | M38: 1000 | N38: 0 | O38: 40 | P38: 12.5 | W38: 34
B39: 15 | C39: Vite Testa Svasata | D39: Construct TS - 10x400 | E39: 10x400 | F39: 01510400 | G39: 7.1 | H39: 6.1 | I39: 10 | J39: 18.5 | K39: 400 | L39: 388 | M39: 1000 | N39: 0 | O39: 40 | P39: 12.5 | W39: 35
B40: 16 | C40: Vite Testa Svasata | D40: Construct TS - 10x450 | E40: 10x450 | F40: 01510450 | G40: 7.1 | H40: 6.1 | I40: 10 | J40: 18.5 | K40: 450 | L40: 426 | M40: 1000 | N40: 0 | O40: 40 | P40: 12.5 | W40: 36
B41: 17 | C41: Vite Testa Svasata | D41: Construct TS - 10x500 | E41: 10x500 | F41: 01510500 | G41: 7.1 | H41: 6.1 | I41: 10 | J41: 18.5 | K41: 500 | L41: 476 | M41: 1000 | N41: 0 | O41: 40 | P41: 12.5 | W41: 37
B42: 18 | C42: Vite Testa Svasata | D42: Construct TS - 10x600 | E42: 10x600 | F42: 01510600 | G42: 7.1 | H42: 6.1 | I42: 10 | J42: 18.5 | K42: 600 | L42: 576 | M42: 1000 | N42: 0 | O42: 40 | P42: 12.5 | W42: 38
B43: 19 | C43: Vite Testa Svasata | D43: Construct TS - 12x400 | E43: 12x400 | F43: 01510400 | G43: 8.2 | H43: 6.8 | I43: 12 | J43: 21 | K43: 400 | L43: 380 | M43: 1000 | N43: 0 | O43: 46.5 | P43: 11.2 | W43: 39
B44: 20 | C44: Vite Testa Svasata | D44: Construct TS - 12x500 | E44: 12x500 | F44: 01510500 | G44: 8.2 | H44: 6.8 | I44: 12 | J44: 21 | K44: 500 | L44: 480 | M44: 1000 | N44: 0 | O44: 46.5 | P44: 11.2 | W44: 40
B45: 21 | C45: Vite Testa Svasata | D45: Construct TS - 12x600 | E45: 12x600 | F45: 01510600 | G45: 8.2 | H45: 6.8 | I45: 12 | J45: 21 | K45: 600 | L45: 580 | M45: 1000 | N45: 0 | O45: 46.5 | P45: 11.2 | W45: 41
B46: 0
D49: =IF(Viti!S4=1,VLOOKUP(Viti!T4,Viti!B5:P24,15),VLOOKUP(Viti!T4,Viti!B25:P45,15)) -> 13.1

Sheet Viti3 (hidden)
J2: Construct TC
J3: Construct TS | S3: INDICE 1 | T3: INDICE 2
B4: CONT2 | C4: Gruppo | D4: Denominazione | E4: dxL | F4: codice | G4: d gambo | H4: d nocciolo | I4: d filetto | J4: d testa | K4: L vite | L4: Lfiletto | M4: fuk(N/mm2) | N4: d rondella | O4: Rtens,k | P4: FAX,K90 | S4: 1 | T4: 9 | W4: CONT
B5: =IF($S$4=1,W5,0) -> 1 | C5: Vite Testa Cilindrica | D5: =CONCATENATE($J$2," - ",E5) -> Construct TC - 8x120 | E5: 8x120 | F5: 01408120 | G5: 5.9 | H5: 5.2 | I5: 8 | J5: 10.2 | K5: 120 | L5: 110 | M5: 1000 | N5: 0 | O5: 24.1 | P5: 13.1 | S5: =+INDEX(V5:V6,S4) -> Vite Testa Cilindrica | T5: =+INDEX(Y5:Y45,T4) -> Construct TC - 8x280 | V5: Vite Testa Cilindrica | W5: 1 | X5: =+nlookup($C$5:$D$45,$S$5,W5,0,1) -> Construct TC - 8x120 | Y5: =IF(X5="#N/D","",+IF(ISERROR(X5),"",X5)) -> Construct TC - 8x120
B6: =IF($S$4=1,W6,0) -> 2 | C6: Vite Testa Cilindrica | D6: =CONCATENATE($J$2," - ",E6) -> Construct TC - 8x140 | E6: 8x140 | F6: 01408140 | G6: 5.9 | H6: 5.2 | I6: 8 | J6: 10.2 | K6: 140 | L6: 130 | M6: 1000 | N6: 0 | O6: 24.1 | P6: 13.1 | V6: Vite Testa Svasata | W6: =W5+1 -> 2 | X6: =+nlookup($C$5:$D$45,$S$5,W6,0,1) -> Construct TC - 8x140 | Y6: =IF(X6="#N/D","",+IF(ISERROR(X6),"",X6)) -> Construct TC - 8x140
B7: 3 | C7: Vite Testa Cilindrica | D7: Construct TC - 8x160 | E7: 8x160 | F7: 01408160 | G7: 5.9 | H7: 5.2 | I7: 8 | J7: 10.2 | K7: 160 | L7: 150 | M7: 1000 | N7: 0 | O7: 24.1 | P7: 13.1 | W7: =W6+1 -> 3 | X7: =+nlookup($C$5:$D$45,$S$5,W7,0,1) -> Construct TC - 8x160 | Y7: Construct TC - 8x160
B8: 4 | C8: Vite Testa Cilindrica | D8: Construct TC - 8x180 | E8: 8x180 | F8: 01408180 | G8: 5.9 | H8: 5.2 | I8: 8 | J8: 10.2 | K8: 180 | L8: 170 | M8: 1000 | N8: 0 | O8: 24.1 | P8: 13.1 | W8: 4 | X8: =+nlookup($C$5:$D$45,$S$5,W8,0,1) -> Construct TC - 8x180 | Y8: Construct TC - 8x180
B9: 5 | C9: Vite Testa Cilindrica | D9: Construct TC - 8x200 | E9: 8x200 | F9: 01408200 | G9: 5.9 | H9: 5.2 | I9: 8 | J9: 10.2 | K9: 200 | L9: 190 | M9: 1000 | N9: 0 | O9: 24.1 | P9: 13.1 | W9: 5 | X9: =+nlookup($C$5:$D$45,$S$5,W9,0,1) -> Construct TC - 8x200 | Y9: Construct TC - 8x200
B10: 6 | C10: Vite Testa Cilindrica | D10: Construct TC - 8x220 | E10: 8x220 | F10: 01408220 | G10: 5.9 | H10: 5.2 | I10: 8 | J10: 10.2 | K10: 220 | L10: 210 | M10: 1000 | N10: 0 | O10: 24.1 | P10: 13.1 | W10: 6 | X10: =+nlookup($C$5:$D$45,$S$5,W10,0,1) -> Construct TC - 8x220 | Y10: Construct TC - 8x220
B11: 7 | C11: Vite Testa Cilindrica | D11: Construct TC - 8x240 | E11: 8x240 | F11: 01408240 | G11: 5.9 | H11: 5.2 | I11: 8 | J11: 10.2 | K11: 240 | L11: 230 | M11: 1000 | N11: 0 | O11: 24.1 | P11: 13.1 | W11: 7 | X11: =+nlookup($C$5:$D$45,$S$5,W11,0,1) -> Construct TC - 8x240 | Y11: Construct TC - 8x240
B12: 8 | C12: Vite Testa Cilindrica | D12: Construct TC - 8x260 | E12: 8x260 | F12: 01408260 | G12: 5.9 | H12: 5.2 | I12: 8 | J12: 10.2 | K12: 260 | L12: 250 | M12: 1000 | N12: 0 | O12: 24.1 | P12: 13.1 | W12: 8 | X12: =+nlookup($C$5:$D$45,$S$5,W12,0,1) -> Construct TC - 8x260 | Y12: Construct TC - 8x260
B13: 9 | C13: Vite Testa Cilindrica | D13: Construct TC - 8x280 | E13: 8x280 | F13: 01408280 | G13: 5.9 | H13: 5.2 | I13: 8 | J13: 10.2 | K13: 280 | L13: 270 | M13: 1000 | N13: 0 | O13: 24.1 | P13: 13.1 | W13: 9 | X13: =+nlookup($C$5:$D$45,$S$5,W13,0,1) -> Construct TC - 8x280 | Y13: Construct TC - 8x280
B14: 10 | C14: Vite Testa Cilindrica | D14: Construct TC - 8x300 | E14: 8x300 | F14: 01408300 | G14: 5.9 | H14: 5.2 | I14: 8 | J14: 10.2 | K14: 300 | L14: 290 | M14: 1000 | N14: 0 | O14: 24.1 | P14: 13.1 | W14: 10 | X14: =+nlookup($C$5:$D$45,$S$5,W14,0,1) -> Construct TC - 8x300 | Y14: Construct TC - 8x300
B15: 11 | C15: Vite Testa Cilindrica | D15: Construct TC - 8x350 | E15: 8x350 | F15: 01408350 | G15: 5.9 | H15: 5.2 | I15: 8 | J15: 10.2 | K15: 350 | L15: 340 | M15: 1000 | N15: 0 | O15: 24.1 | P15: 13.1 | W15: 11 | X15: =+nlookup($C$5:$D$45,$S$5,W15,0,1) -> Construct TC - 8x350 | Y15: Construct TC - 8x350
B16: 12 | C16: Vite Testa Cilindrica | D16: Construct TC - 8x400 | E16: 8x400 | F16: 01408400 | G16: 5.9 | H16: 5.2 | I16: 8 | J16: 10.2 | K16: 400 | L16: 390 | M16: 1000 | N16: 0 | O16: 24.1 | P16: 13.1 | W16: 12 | X16: =+nlookup($C$5:$D$45,$S$5,W16,0,1) -> Construct TC - 8x400 | Y16: Construct TC - 8x400
B17: 13 | C17: Vite Testa Cilindrica | D17: Construct TC - 8x450 | E17: 8x450 | F17: 01408450 | G17: 5.9 | H17: 5.2 | I17: 8 | J17: 10.2 | K17: 450 | L17: 428 | M17: 1000 | N17: 0 | O17: 24.1 | P17: 13.1 | W17: 13 | X17: =+nlookup($C$5:$D$45,$S$5,W17,0,1) -> Construct TC - 8x450 | Y17: Construct TC - 8x450
B18: 14 | C18: Vite Testa Cilindrica | D18: Construct TC - 8x500 | E18: 8x500 | F18: 01408500 | G18: 5.9 | H18: 5.2 | I18: 8 | J18: 10.2 | K18: 500 | L18: 478 | M18: 1000 | N18: 0 | O18: 24.1 | P18: 13.1 | W18: 14 | X18: =+nlookup($C$5:$D$45,$S$5,W18,0,1) -> Construct TC - 8x500 | Y18: Construct TC - 8x500
B19: 15 | C19: Vite Testa Cilindrica | D19: Construct TC - 8x600 | E19: 8x600 | F19: 01408600 | G19: 5.9 | H19: 5.2 | I19: 8 | J19: 10.2 | K19: 600 | L19: 578 | M19: 1000 | N19: 0 | O19: 24.1 | P19: 13.1 | W19: 15 | X19: =+nlookup($C$5:$D$45,$S$5,W19,0,1) -> Construct TC - 8x600 | Y19: Construct TC - 8x600
B20: 16 | C20: Vite Testa Cilindrica | D20: Construct TC - 10x450 | E20: 10x450 | F20: 01410450 | G20: 7.1 | H20: 6.1 | I20: 10 | J20: 13.4 | K20: 450 | L20: 426 | M20: 1000 | N20: 0 | O20: 40 | P20: 12.5 | W20: 16 | X20: =+nlookup($C$5:$D$45,$S$5,W20,0,1) -> Construct TC - 10x450 | Y20: Construct TC - 10x450
B21: 17 | C21: Vite Testa Cilindrica | D21: Construct TC - 10x500 | E21: 10x500 | F21: 01410500 | G21: 7.1 | H21: 6.1 | I21: 10 | J21: 13.4 | K21: 500 | L21: 476 | M21: 1000 | N21: 0 | O21: 40 | P21: 12.5 | W21: 17 | X21: =+nlookup($C$5:$D$45,$S$5,W21,0,1) -> Construct TC - 10x500 | Y21: Construct TC - 10x500
B22: 18 | C22: Vite Testa Cilindrica | D22: Construct TC - 10x600 | E22: 10x600 | F22: 01410600 | G22: 7.1 | H22: 6.1 | I22: 10 | J22: 13.4 | K22: 600 | L22: 576 | M22: 1000 | N22: 0 | O22: 40 | P22: 12.5 | W22: 18 | X22: =+nlookup($C$5:$D$45,$S$5,W22,0,1) -> Construct TC - 10x600 | Y22: Construct TC - 10x600
B23: 19 | C23: Vite Testa Cilindrica | D23: Construct TC - 10x800 | E23: 10x800 | F23: 01410800 | G23: 7.1 | H23: 6.1 | I23: 10 | J23: 13.4 | K23: 800 | L23: 776 | M23: 1000 | N23: 0 | O23: 40 | P23: 12.5 | W23: 19 | X23: =+nlookup($C$5:$D$45,$S$5,W23,0,1) -> Construct TC - 10x800 | Y23: Construct TC - 10x800
B24: 20 | C24: Vite Testa Cilindrica | D24: Construct TC - 10x1000 | E24: 10x1000 | F24: 01411000 | G24: 7.1 | H24: 6.1 | I24: 10 | J24: 13.4 | K24: 1000 | L24: 976 | M24: 1000 | N24: 0 | O24: 40 | P24: 12.5 | W24: 20 | X24: =+nlookup($C$5:$D$45,$S$5,W24,0,1) -> Construct TC - 10x1000 | Y24: Construct TC - 10x1000
B25: =IF($S$4=1,0,W5) -> 0 | C25: Vite Testa Svasata | D25: =CONCATENATE($J$3," - ",E25) -> Construct TS - 8x160 | E25: 8x160 | F25: 01580160 | G25: 5.9 | H25: 5.2 | I25: 8 | J25: 15 | K25: 160 | L25: 150 | M25: 1000 | N25: 0 | O25: 24.1 | P25: 13.1 | W25: 21 | X25: =+nlookup($C$5:$D$45,$S$5,W25,0,1) -> 
B26: =IF($S$4=1,0,W6) -> 0 | C26: Vite Testa Svasata | D26: =CONCATENATE($J$3," - ",E26) -> Construct TS - 8x200 | E26: 8x200 | F26: 01580200 | G26: 5.9 | H26: 5.2 | I26: 8 | J26: 15 | K26: 200 | L26: 190 | M26: 1000 | N26: 0 | O26: 24.1 | P26: 13.1 | W26: 22 | X26: =+nlookup($C$5:$D$45,$S$5,W26,0,1) ->  | Y26: =+IF(ISERROR(X26),"",X26) -> 
B27: 0 | C27: Vite Testa Svasata | D27: Construct TS - 8x240 | E27: 8x240 | F27: 01580240 | G27: 5.9 | H27: 5.2 | I27: 8 | J27: 15 | K27: 240 | L27: 230 | M27: 1000 | N27: 0 | O27: 24.1 | P27: 13.1 | W27: 23 | X27: =+nlookup($C$5:$D$45,$S$5,W27,0,1) -> 
B28: 0 | C28: Vite Testa Svasata | D28: Construct TS - 8x280 | E28: 8x280 | F28: 01580280 | G28: 5.9 | H28: 5.2 | I28: 8 | J28: 15 | K28: 280 | L28: 270 | M28: 1000 | N28: 0 | O28: 24.1 | P28: 13.1 | W28: 24
B29: 0 | C29: Vite Testa Svasata | D29: Construct TS - 8x300 | E29: 8x300 | F29: 01580300 | G29: 5.9 | H29: 5.2 | I29: 8 | J29: 15 | K29: 300 | L29: 290 | M29: 1000 | N29: 0 | O29: 24.1 | P29: 13.1 | W29: 25
B30: 0 | C30: Vite Testa Svasata | D30: Construct TS - 8x350 | E30: 8x350 | F30: 01580350 | G30: 5.9 | H30: 5.2 | I30: 8 | J30: 15 | K30: 350 | L30: 340 | M30: 1000 | N30: 0 | O30: 24.1 | P30: 13.1 | W30: 26
B31: 0 | C31: Vite Testa Svasata | D31: Construct TS - 8x400 | E31: 8x400 | F31: 01580400 | G31: 5.9 | H31: 5.2 | I31: 8 | J31: 15 | K31: 400 | L31: 390 | M31: 1000 | N31: 0 | O31: 24.1 | P31: 13.1 | W31: 27
B32: 0 | C32: Vite Testa Svasata | D32: Construct TS - 8x450 | E32: 8x450 | F32: 01580450 | G32: 5.9 | H32: 5.2 | I32: 8 | J32: 15 | K32: 450 | L32: 428 | M32: 1000 | N32: 0 | O32: 24.1 | P32: 13.1 | W32: 28
B33: 0 | C33: Vite Testa Svasata | D33: Construct TS - 8x500 | E33: 8x500 | F33: 01580500 | G33: 5.9 | H33: 5.2 | I33: 8 | J33: 15 | K33: 500 | L33: 478 | M33: 1000 | N33: 0 | O33: 24.1 | P33: 13.1 | W33: 29
B34: 0 | C34: Vite Testa Svasata | D34: Construct TS - 10x160 | E34: 10x160 | F34: 01510160 | G34: 7.1 | H34: 6.1 | I34: 10 | J34: 18.5 | K34: 160 | L34: 148 | M34: 1000 | N34: 0 | O34: 40 | P34: 12.5 | W34: 30
B35: 0 | C35: Vite Testa Svasata | D35: Construct TS - 10x200 | E35: 10x200 | F35: 01510200 | G35: 7.1 | H35: 6.1 | I35: 10 | J35: 18.5 | K35: 200 | L35: 188 | M35: 1000 | N35: 0 | O35: 40 | P35: 12.5 | W35: 31
B36: 0 | C36: Vite Testa Svasata | D36: Construct TS - 10x240 | E36: 10x240 | F36: 01510240 | G36: 7.1 | H36: 6.1 | I36: 10 | J36: 18.5 | K36: 240 | L36: 228 | M36: 1000 | N36: 0 | O36: 40 | P36: 12.5 | W36: 32
B37: 0 | C37: Vite Testa Svasata | D37: Construct TS - 10x300 | E37: 10x300 | F37: 01510300 | G37: 7.1 | H37: 6.1 | I37: 10 | J37: 18.5 | K37: 300 | L37: 288 | M37: 1000 | N37: 0 | O37: 40 | P37: 12.5 | W37: 33
B38: 0 | C38: Vite Testa Svasata | D38: Construct TS - 10x350 | E38: 10x350 | F38: 01510350 | G38: 7.1 | H38: 6.1 | I38: 10 | J38: 18.5 | K38: 350 | L38: 338 | M38: 1000 | N38: 0 | O38: 40 | P38: 12.5 | W38: 34
B39: 0 | C39: Vite Testa Svasata | D39: Construct TS - 10x400 | E39: 10x400 | F39: 01510400 | G39: 7.1 | H39: 6.1 | I39: 10 | J39: 18.5 | K39: 400 | L39: 388 | M39: 1000 | N39: 0 | O39: 40 | P39: 12.5 | W39: 35
B40: 0 | C40: Vite Testa Svasata | D40: Construct TS - 10x450 | E40: 10x450 | F40: 01510450 | G40: 7.1 | H40: 6.1 | I40: 10 | J40: 18.5 | K40: 450 | L40: 426 | M40: 1000 | N40: 0 | O40: 40 | P40: 12.5 | W40: 36
B41: 0 | C41: Vite Testa Svasata | D41: Construct TS - 10x500 | E41: 10x500 | F41: 01510500 | G41: 7.1 | H41: 6.1 | I41: 10 | J41: 18.5 | K41: 500 | L41: 476 | M41: 1000 | N41: 0 | O41: 40 | P41: 12.5 | W41: 37
B42: 0 | C42: Vite Testa Svasata | D42: Construct TS - 10x600 | E42: 10x600 | F42: 01510600 | G42: 7.1 | H42: 6.1 | I42: 10 | J42: 18.5 | K42: 600 | L42: 576 | M42: 1000 | N42: 0 | O42: 40 | P42: 12.5 | W42: 38
B43: 0 | C43: Vite Testa Svasata | D43: Construct TS - 12x400 | E43: 12x400 | F43: 01510400 | G43: 8.2 | H43: 6.8 | I43: 12 | J43: 21 | K43: 400 | L43: 380 | M43: 1000 | N43: 0 | O43: 46.5 | P43: 11.2 | W43: 39
B44: 0 | C44: Vite Testa Svasata | D44: Construct TS - 12x500 | E44: 12x500 | F44: 01510500 | G44: 8.2 | H44: 6.8 | I44: 12 | J44: 21 | K44: 500 | L44: 480 | M44: 1000 | N44: 0 | O44: 46.5 | P44: 11.2 | W44: 40
B45: 0 | C45: Vite Testa Svasata | D45: Construct TS - 12x600 | E45: 12x600 | F45: 01510600 | G45: 8.2 | H45: 6.8 | I45: 12 | J45: 21 | K45: 600 | L45: 580 | M45: 1000 | N45: 0 | O45: 46.5 | P45: 11.2 | W45: 41
B46: 0
D49: =IF(Viti!S4=1,VLOOKUP(Viti!T4,Viti!B5:P24,15),VLOOKUP(Viti!T4,Viti!B25:P45,15)) -> 13.1

Sheet Viti4 (hidden)
J2: Construct TC
J3: Construct TS | S3: INDICE 1 | T3: INDICE 2
B4: CONT2 | C4: Gruppo | D4: Denominazione | E4: dxL | F4: codice | G4: d gambo | H4: d nocciolo | I4: d filetto | J4: d testa | K4: L vite | L4: Lfiletto | M4: fuk(N/mm2) | N4: d rondella | O4: Rtens,k | P4: FAX,K90 | S4: 2 | T4: 2 | W4: CONT
B5: =IF($S$4=1,W5,0) -> 0 | C5: Vite Testa Cilindrica | D5: =CONCATENATE($J$2," - ",E5) -> Construct TC - 8x120 | E5: 8x120 | F5: 01408120 | G5: 5.9 | H5: 5.2 | I5: 8 | J5: 10.2 | K5: 120 | L5: 110 | M5: 1000 | N5: 0 | O5: 24.1 | P5: 13.1 | S5: =+INDEX(V5:V6,S4) -> Vite Testa Svasata | T5: =+INDEX(Y5:Y45,T4) -> Construct TS - 8x200 | V5: Vite Testa Cilindrica | W5: 1 | X5: =+nlookup($C$5:$D$45,$S$5,W5,0,1) -> Construct TS - 8x160 | Y5: =IF(X5="#N/D","",+IF(ISERROR(X5),"",X5)) -> Construct TS - 8x160
B6: =IF($S$4=1,W6,0) -> 0 | C6: Vite Testa Cilindrica | D6: =CONCATENATE($J$2," - ",E6) -> Construct TC - 8x140 | E6: 8x140 | F6: 01408140 | G6: 5.9 | H6: 5.2 | I6: 8 | J6: 10.2 | K6: 140 | L6: 130 | M6: 1000 | N6: 0 | O6: 24.1 | P6: 13.1 | V6: Vite Testa Svasata | W6: =W5+1 -> 2 | X6: =+nlookup($C$5:$D$45,$S$5,W6,0,1) -> Construct TS - 8x200 | Y6: =IF(X6="#N/D","",+IF(ISERROR(X6),"",X6)) -> Construct TS - 8x200
B7: 0 | C7: Vite Testa Cilindrica | D7: Construct TC - 8x160 | E7: 8x160 | F7: 01408160 | G7: 5.9 | H7: 5.2 | I7: 8 | J7: 10.2 | K7: 160 | L7: 150 | M7: 1000 | N7: 0 | O7: 24.1 | P7: 13.1 | W7: =W6+1 -> 3 | X7: =+nlookup($C$5:$D$45,$S$5,W7,0,1) -> Construct TS - 8x240 | Y7: Construct TS - 8x240
B8: 0 | C8: Vite Testa Cilindrica | D8: Construct TC - 8x180 | E8: 8x180 | F8: 01408180 | G8: 5.9 | H8: 5.2 | I8: 8 | J8: 10.2 | K8: 180 | L8: 170 | M8: 1000 | N8: 0 | O8: 24.1 | P8: 13.1 | W8: 4 | X8: =+nlookup($C$5:$D$45,$S$5,W8,0,1) -> Construct TS - 8x280 | Y8: Construct TS - 8x280
B9: 0 | C9: Vite Testa Cilindrica | D9: Construct TC - 8x200 | E9: 8x200 | F9: 01408200 | G9: 5.9 | H9: 5.2 | I9: 8 | J9: 10.2 | K9: 200 | L9: 190 | M9: 1000 | N9: 0 | O9: 24.1 | P9: 13.1 | W9: 5 | X9: =+nlookup($C$5:$D$45,$S$5,W9,0,1) -> Construct TS - 8x300 | Y9: Construct TS - 8x300
B10: 0 | C10: Vite Testa Cilindrica | D10: Construct TC - 8x220 | E10: 8x220 | F10: 01408220 | G10: 5.9 | H10: 5.2 | I10: 8 | J10: 10.2 | K10: 220 | L10: 210 | M10: 1000 | N10: 0 | O10: 24.1 | P10: 13.1 | W10: 6 | X10: =+nlookup($C$5:$D$45,$S$5,W10,0,1) -> Construct TS - 8x350 | Y10: Construct TS - 8x350
B11: 0 | C11: Vite Testa Cilindrica | D11: Construct TC - 8x240 | E11: 8x240 | F11: 01408240 | G11: 5.9 | H11: 5.2 | I11: 8 | J11: 10.2 | K11: 240 | L11: 230 | M11: 1000 | N11: 0 | O11: 24.1 | P11: 13.1 | W11: 7 | X11: =+nlookup($C$5:$D$45,$S$5,W11,0,1) -> Construct TS - 8x400 | Y11: Construct TS - 8x400
B12: 0 | C12: Vite Testa Cilindrica | D12: Construct TC - 8x260 | E12: 8x260 | F12: 01408260 | G12: 5.9 | H12: 5.2 | I12: 8 | J12: 10.2 | K12: 260 | L12: 250 | M12: 1000 | N12: 0 | O12: 24.1 | P12: 13.1 | W12: 8 | X12: =+nlookup($C$5:$D$45,$S$5,W12,0,1) -> Construct TS - 8x450 | Y12: Construct TS - 8x450
B13: 0 | C13: Vite Testa Cilindrica | D13: Construct TC - 8x280 | E13: 8x280 | F13: 01408280 | G13: 5.9 | H13: 5.2 | I13: 8 | J13: 10.2 | K13: 280 | L13: 270 | M13: 1000 | N13: 0 | O13: 24.1 | P13: 13.1 | W13: 9 | X13: =+nlookup($C$5:$D$45,$S$5,W13,0,1) -> Construct TS - 8x500 | Y13: Construct TS - 8x500
B14: 0 | C14: Vite Testa Cilindrica | D14: Construct TC - 8x300 | E14: 8x300 | F14: 01408300 | G14: 5.9 | H14: 5.2 | I14: 8 | J14: 10.2 | K14: 300 | L14: 290 | M14: 1000 | N14: 0 | O14: 24.1 | P14: 13.1 | W14: 10 | X14: =+nlookup($C$5:$D$45,$S$5,W14,0,1) -> Construct TS - 10x160 | Y14: Construct TS - 10x160
B15: 0 | C15: Vite Testa Cilindrica | D15: Construct TC - 8x350 | E15: 8x350 | F15: 01408350 | G15: 5.9 | H15: 5.2 | I15: 8 | J15: 10.2 | K15: 350 | L15: 340 | M15: 1000 | N15: 0 | O15: 24.1 | P15: 13.1 | W15: 11 | X15: =+nlookup($C$5:$D$45,$S$5,W15,0,1) -> Construct TS - 10x200 | Y15: Construct TS - 10x200
B16: 0 | C16: Vite Testa Cilindrica | D16: Construct TC - 8x400 | E16: 8x400 | F16: 01408400 | G16: 5.9 | H16: 5.2 | I16: 8 | J16: 10.2 | K16: 400 | L16: 390 | M16: 1000 | N16: 0 | O16: 24.1 | P16: 13.1 | W16: 12 | X16: =+nlookup($C$5:$D$45,$S$5,W16,0,1) -> Construct TS - 10x240 | Y16: Construct TS - 10x240
B17: 0 | C17: Vite Testa Cilindrica | D17: Construct TC - 8x450 | E17: 8x450 | F17: 01408450 | G17: 5.9 | H17: 5.2 | I17: 8 | J17: 10.2 | K17: 450 | L17: 428 | M17: 1000 | N17: 0 | O17: 24.1 | P17: 13.1 | W17: 13 | X17: =+nlookup($C$5:$D$45,$S$5,W17,0,1) -> Construct TS - 10x300 | Y17: Construct TS - 10x300
B18: 0 | C18: Vite Testa Cilindrica | D18: Construct TC - 8x500 | E18: 8x500 | F18: 01408500 | G18: 5.9 | H18: 5.2 | I18: 8 | J18: 10.2 | K18: 500 | L18: 478 | M18: 1000 | N18: 0 | O18: 24.1 | P18: 13.1 | W18: 14 | X18: =+nlookup($C$5:$D$45,$S$5,W18,0,1) -> Construct TS - 10x350 | Y18: Construct TS - 10x350
B19: 0 | C19: Vite Testa Cilindrica | D19: Construct TC - 8x600 | E19: 8x600 | F19: 01408600 | G19: 5.9 | H19: 5.2 | I19: 8 | J19: 10.2 | K19: 600 | L19: 578 | M19: 1000 | N19: 0 | O19: 24.1 | P19: 13.1 | W19: 15 | X19: =+nlookup($C$5:$D$45,$S$5,W19,0,1) -> Construct TS - 10x400 | Y19: Construct TS - 10x400
B20: 0 | C20: Vite Testa Cilindrica | D20: Construct TC - 10x450 | E20: 10x450 | F20: 01410450 | G20: 7.1 | H20: 6.1 | I20: 10 | J20: 13.4 | K20: 450 | L20: 426 | M20: 1000 | N20: 0 | O20: 40 | P20: 12.5 | W20: 16 | X20: =+nlookup($C$5:$D$45,$S$5,W20,0,1) -> Construct TS - 10x450 | Y20: Construct TS - 10x450
B21: 0 | C21: Vite Testa Cilindrica | D21: Construct TC - 10x500 | E21: 10x500 | F21: 01410500 | G21: 7.1 | H21: 6.1 | I21: 10 | J21: 13.4 | K21: 500 | L21: 476 | M21: 1000 | N21: 0 | O21: 40 | P21: 12.5 | W21: 17 | X21: =+nlookup($C$5:$D$45,$S$5,W21,0,1) -> Construct TS - 10x500 | Y21: Construct TS - 10x500
B22: 0 | C22: Vite Testa Cilindrica | D22: Construct TC - 10x600 | E22: 10x600 | F22: 01410600 | G22: 7.1 | H22: 6.1 | I22: 10 | J22: 13.4 | K22: 600 | L22: 576 | M22: 1000 | N22: 0 | O22: 40 | P22: 12.5 | W22: 18 | X22: =+nlookup($C$5:$D$45,$S$5,W22,0,1) -> Construct TS - 10x600 | Y22: Construct TS - 10x600
B23: 0 | C23: Vite Testa Cilindrica | D23: Construct TC - 10x800 | E23: 10x800 | F23: 01410800 | G23: 7.1 | H23: 6.1 | I23: 10 | J23: 13.4 | K23: 800 | L23: 776 | M23: 1000 | N23: 0 | O23: 40 | P23: 12.5 | W23: 19 | X23: =+nlookup($C$5:$D$45,$S$5,W23,0,1) -> Construct TS - 12x400 | Y23: Construct TS - 12x400
B24: 0 | C24: Vite Testa Cilindrica | D24: Construct TC - 10x1000 | E24: 10x1000 | F24: 01411000 | G24: 7.1 | H24: 6.1 | I24: 10 | J24: 13.4 | K24: 1000 | L24: 976 | M24: 1000 | N24: 0 | O24: 40 | P24: 12.5 | W24: 20 | X24: =+nlookup($C$5:$D$45,$S$5,W24,0,1) -> Construct TS - 12x500 | Y24: Construct TS - 12x500
B25: =IF($S$4=1,0,W5) -> 1 | C25: Vite Testa Svasata | D25: =CONCATENATE($J$3," - ",E25) -> Construct TS - 8x160 | E25: 8x160 | F25: 01580160 | G25: 5.9 | H25: 5.2 | I25: 8 | J25: 15 | K25: 160 | L25: 150 | M25: 1000 | N25: 0 | O25: 24.1 | P25: 13.1 | W25: 21 | X25: =+nlookup($C$5:$D$45,$S$5,W25,0,1) -> Construct TS - 12x600 | Y25: Construct TS - 12x600
B26: =IF($S$4=1,0,W6) -> 2 | C26: Vite Testa Svasata | D26: =CONCATENATE($J$3," - ",E26) -> Construct TS - 8x200 | E26: 8x200 | F26: 01580200 | G26: 5.9 | H26: 5.2 | I26: 8 | J26: 15 | K26: 200 | L26: 190 | M26: 1000 | N26: 0 | O26: 24.1 | P26: 13.1 | W26: 22 | X26: =+nlookup($C$5:$D$45,$S$5,W26,0,1) ->  | Y26: =+IF(ISERROR(X26),"",X26) -> 
B27: 3 | C27: Vite Testa Svasata | D27: Construct TS - 8x240 | E27: 8x240 | F27: 01580240 | G27: 5.9 | H27: 5.2 | I27: 8 | J27: 15 | K27: 240 | L27: 230 | M27: 1000 | N27: 0 | O27: 24.1 | P27: 13.1 | W27: 23 | X27: =+nlookup($C$5:$D$45,$S$5,W27,0,1) -> 
B28: 4 | C28: Vite Testa Svasata | D28: Construct TS - 8x280 | E28: 8x280 | F28: 01580280 | G28: 5.9 | H28: 5.2 | I28: 8 | J28: 15 | K28: 280 | L28: 270 | M28: 1000 | N28: 0 | O28: 24.1 | P28: 13.1 | W28: 24
B29: 5 | C29: Vite Testa Svasata | D29: Construct TS - 8x300 | E29: 8x300 | F29: 01580300 | G29: 5.9 | H29: 5.2 | I29: 8 | J29: 15 | K29: 300 | L29: 290 | M29: 1000 | N29: 0 | O29: 24.1 | P29: 13.1 | W29: 25
B30: 6 | C30: Vite Testa Svasata | D30: Construct TS - 8x350 | E30: 8x350 | F30: 01580350 | G30: 5.9 | H30: 5.2 | I30: 8 | J30: 15 | K30: 350 | L30: 340 | M30: 1000 | N30: 0 | O30: 24.1 | P30: 13.1 | W30: 26
B31: 7 | C31: Vite Testa Svasata | D31: Construct TS - 8x400 | E31: 8x400 | F31: 01580400 | G31: 5.9 | H31: 5.2 | I31: 8 | J31: 15 | K31: 400 | L31: 390 | M31: 1000 | N31: 0 | O31: 24.1 | P31: 13.1 | W31: 27
B32: 8 | C32: Vite Testa Svasata | D32: Construct TS - 8x450 | E32: 8x450 | F32: 01580450 | G32: 5.9 | H32: 5.2 | I32: 8 | J32: 15 | K32: 450 | L32: 428 | M32: 1000 | N32: 0 | O32: 24.1 | P32: 13.1 | W32: 28
B33: 9 | C33: Vite Testa Svasata | D33: Construct TS - 8x500 | E33: 8x500 | F33: 01580500 | G33: 5.9 | H33: 5.2 | I33: 8 | J33: 15 | K33: 500 | L33: 478 | M33: 1000 | N33: 0 | O33: 24.1 | P33: 13.1 | W33: 29
B34: 10 | C34: Vite Testa Svasata | D34: Construct TS - 10x160 | E34: 10x160 | F34: 01510160 | G34: 7.1 | H34: 6.1 | I34: 10 | J34: 18.5 | K34: 160 | L34: 148 | M34: 1000 | N34: 0 | O34: 40 | P34: 12.5 | W34: 30
B35: 11 | C35: Vite Testa Svasata | D35: Construct TS - 10x200 | E35: 10x200 | F35: 01510200 | G35: 7.1 | H35: 6.1 | I35: 10 | J35: 18.5 | K35: 200 | L35: 188 | M35: 1000 | N35: 0 | O35: 40 | P35: 12.5 | W35: 31
B36: 12 | C36: Vite Testa Svasata | D36: Construct TS - 10x240 | E36: 10x240 | F36: 01510240 | G36: 7.1 | H36: 6.1 | I36: 10 | J36: 18.5 | K36: 240 | L36: 228 | M36: 1000 | N36: 0 | O36: 40 | P36: 12.5 | W36: 32
B37: 13 | C37: Vite Testa Svasata | D37: Construct TS - 10x300 | E37: 10x300 | F37: 01510300 | G37: 7.1 | H37: 6.1 | I37: 10 | J37: 18.5 | K37: 300 | L37: 288 | M37: 1000 | N37: 0 | O37: 40 | P37: 12.5 | W37: 33
B38: 14 | C38: Vite Testa Svasata | D38: Construct TS - 10x350 | E38: 10x350 | F38: 01510350 | G38: 7.1 | H38: 6.1 | I38: 10 | J38: 18.5 | K38: 350 | L38: 338 | M38: 1000 | N38: 0 | O38: 40 | P38: 12.5 | W38: 34
B39: 15 | C39: Vite Testa Svasata | D39: Construct TS - 10x400 | E39: 10x400 | F39: 01510400 | G39: 7.1 | H39: 6.1 | I39: 10 | J39: 18.5 | K39: 400 | L39: 388 | M39: 1000 | N39: 0 | O39: 40 | P39: 12.5 | W39: 35
B40: 16 | C40: Vite Testa Svasata | D40: Construct TS - 10x450 | E40: 10x450 | F40: 01510450 | G40: 7.1 | H40: 6.1 | I40: 10 | J40: 18.5 | K40: 450 | L40: 426 | M40: 1000 | N40: 0 | O40: 40 | P40: 12.5 | W40: 36
B41: 17 | C41: Vite Testa Svasata | D41: Construct TS - 10x500 | E41: 10x500 | F41: 01510500 | G41: 7.1 | H41: 6.1 | I41: 10 | J41: 18.5 | K41: 500 | L41: 476 | M41: 1000 | N41: 0 | O41: 40 | P41: 12.5 | W41: 37
B42: 18 | C42: Vite Testa Svasata | D42: Construct TS - 10x600 | E42: 10x600 | F42: 01510600 | G42: 7.1 | H42: 6.1 | I42: 10 | J42: 18.5 | K42: 600 | L42: 576 | M42: 1000 | N42: 0 | O42: 40 | P42: 12.5 | W42: 38
B43: 19 | C43: Vite Testa Svasata | D43: Construct TS - 12x400 | E43: 12x400 | F43: 01510400 | G43: 8.2 | H43: 6.8 | I43: 12 | J43: 21 | K43: 400 | L43: 380 | M43: 1000 | N43: 0 | O43: 46.5 | P43: 11.2 | W43: 39
B44: 20 | C44: Vite Testa Svasata | D44: Construct TS - 12x500 | E44: 12x500 | F44: 01510500 | G44: 8.2 | H44: 6.8 | I44: 12 | J44: 21 | K44: 500 | L44: 480 | M44: 1000 | N44: 0 | O44: 46.5 | P44: 11.2 | W44: 40
B45: 21 | C45: Vite Testa Svasata | D45: Construct TS - 12x600 | E45: 12x600 | F45: 01510600 | G45: 8.2 | H45: 6.8 | I45: 12 | J45: 21 | K45: 600 | L45: 580 | M45: 1000 | N45: 0 | O45: 46.5 | P45: 11.2 | W45: 41
B46: 0
D49: =IF(Viti!S4=1,VLOOKUP(Viti!T4,Viti!B5:P24,15),VLOOKUP(Viti!T4,Viti!B25:P45,15)) -> 13.1
